Workbook

Sheet Summary Sheet (hidden)
A1: Storeferry Summary report
A6: Total revenue | B6: Total revenue
A7: Total revenue | B7: 19071084
A8: Grand Total | B8: 19071084
A10: Average Order Value | B10: Average of bcy_total
A11: Total revenue | B11: 31009.89268
A12: Grand Total | B12: 31009.89268
A14: Number of Quotes | B14: Count of Quote#
A15: Number of Quotes | B15: 1001
A16: Grand Total | B16: 1001
A18: Number of Orders | B18: Count of invoice_number
A19: Number of Orders | B19: 615
A20: Grand Total | B20: 615
A22: Conversion percentage | B22: =(GETPIVOTDATA("invoice_number",$A$18,"Dummy","Number of Orders ")/GETPIVOTDATA("Quote#",$A$14,"Dummy","Number of Quotes"))*100 -> 61.43856144
A24: Categorywise revenue | D24: Categorywise Order
A26: Category | B26: Revenue | C26: Percentage | D26: Category | E26: Count | F26: Percentage
A27: Electrical | B27: 6203630 | C27: 0.3252898472 | D27: Plumbing | E27: 210 | F27: 0.2200720211 | G27: =GETPIVOTDATA("Count",$D$26,"Category ","Plumbing")/GETPIVOTDATA("Count",$D$26) -> 0.3414634146
A28: Plumbing | B28: 4197012 | C28: 0.2200720211 | D28: Electrical | E28: 105 | F28: 0.3252898472
A29: HK | B29: 2359749 | C29: 0.1237343929 | D29: HK | E29: 96 | F29: 0.1237343929
A30: Media | B30: 1658285 | C30: 0.08695284442 | D30: Pool | E30: 65 | F30: 0.04843862048
A31: Building Utility | B31: 1350385 | C31: 0.07080798344 | D31: Building Utility | E31: 37 | F31: 0.07080798344
A32: Pool | B32: 923777 | C32: 0.04843862048 | D32: Stationary | E32: 36 | F32: 0.02675852091
A33: Pump | B33: 667489 | C33: 0.03500005558 | D33: Safety | E33: 19 | F33: 0.03395171454
A34: Safety | B34: 647496 | C34: 0.03395171454 | D34: Media | E34: 12 | F34: 0.08695284442
A35: Stationary | B35: 510314 | C35: 0.02675852091 | D35: Pump | E35: 10 | F35: 0.03500005558
A36: Machine | B36: 215819 | C36: 0.01131655652 | D36: Tools | E36: 10 | F36: 0.00699960212
A37: Tools | B37: 133490 | C37: 0.00699960212 | D37: Hardware | E37: 7 | F37: 0.006577811728
A38: Hardware | B38: 125446 | C38: 0.006577811728 | D38: Electronics | E38: 5 | F38: 0.004100029133
A39: Electronics | B39: 78192 | C39: 0.004100029133 | D39: Machine | E39: 3 | F39: 0.01131655652
A40: Grand Total | B40: 19071084 | C40: 1 | D40: Grand Total | E40: 615 | F40: 1
A43: Top Customer in Count | D43: Top Customer in Revenue
A46: Customer Name | B46: Count of Order | D46: Customer Name | E46: Revenue
A47: PRESTIGE FERNS RESIDENCY APARTMENT OWNERS ASSOCIATION | B47: 84 | D47: PRESTIGE FERNS RESIDENCY APARTMENT OWNERS ASSOCIATION | E47: 3055211
A48: MANTRI TRANQUIL APARTMENT OWNERS ASSOCIATION | B48: 58 | D48: MJR PLATINA APARTMENT OWNERS ASSOCIATION | E48: 1867107
A49: SNN Raj Greenbay Apartment Owners Association | B49: 39 | D49: TIRUMALA BUILDERS | E49: 1617059
A50: MJR PLATINA APARTMENT OWNERS ASSOCIATION | B50: 33 | D50: SNN Raj Greenbay Apartment Owners Association | E50: 1433542
A51: CASA PARADISO 2 SUBCOMMITTEE | B51: 30 | D51: SRI VINAYAKA BUILDERS AND DEVELOPERS | E51: 1411228
A52: DSR WOODWINDS APARTMENT OWNERS ASSOCIATION | B52: 19 | D52: MANTRI TRANQUIL APARTMENT OWNERS ASSOCIATION | E52: 1287210
A53: GREENAGE OWNERS ASSOCIATION | B53: 18 | D53: ENCARE SOLUTIONS & SERVICES | E53: 1172851
A54: ROHAN JHAROKA OWNERS ASSOCIATION | B54: 16 | D54: VM TECH SERVICES | E54: 650530
A55: Purva Palm Beach Apartment | B55: 14 | D55: DSR WOODWINDS APARTMENT OWNERS ASSOCIATION | E55: 490181
A56: F360 FACILITY SERVICES PRIVATE LIMITED | B56: 12 | D56: PARADIGM INTEGRATED FACILITY SERVICES PRIVATE LIMITED | E56: 484562
A57: Grand Total | B57: 323 | D57: Grand Total | E57: 13469481

Sheet Sheet3 (hidden)
A1: Year | B1: 2023
A3: Row Labels | B3: Sum of COGS | C3: Sum of Logistics | D3: Sum of Gross Profit
A4: Jan | B4: 752415 | C4: 18723.25 | D4: 188121.75
A5: Feb | B5: 557573 | C5: 10173.6 | D5: 193414.4
A6: Mar | B6: 455816 | C6: 8404.91 | D6: 71274.09
A7: Apr | B7: 487190 | C7: 35379.8 | D7: 127046.2
A8: May | B8: 511828 | C8: 8555.8 | D8: 124924.2
A9: Jun | B9: 1491998 | C9: 34487.3 | D9: 163365.7
A10: Jul | B10: 2089421 | C10: 28576.7 | D10: 134246.3
A11: Aug | B11: 1986912 | C11: 7649.2 | D11: 62052.8
A12: Sep | B12: 239920 | C12: 26627.9 | D12: 43435.1
A13: Oct | B13: 256261 | C13: 5006 | D13: 33983
A14: Nov | B14: 213790 | C14: 6767 | D14: 53602
A15: Dec | B15: 321117 | C15: 6680 | D15: 50914
A16: Grand Total | B16: 9364241 | C16: 197031.46 | D16: 1246379.54
A25: Year | B25: (All)
A27: Row Labels | B27: Sum of COGS | C27: Sum of Logistics | D27: Sum of Gross Profit
A28: BU | B28: 1052637 | C28: 57232 | D28: 240516
A29: E | B29: 5701071 | C29: 47898.84 | D29: 416602.16
A30: Electronics | B30: 71634 | C30: 820 | D30: 5738
A31: Hardware | B31: 77881 | C31: 1569 | D31: 45996
A32: HK | B32: 2025954 | C32: 46047 | D32: 201208
A33: Machine | B33: 175140 | C33: 2324.85 | D33: 38354.15
A34: Media | B34: 1416731 | C34: 37794.63 | D34: 203759.37
A35: Plumbing | B35: 3379914 | C35: 74472.19 | D35: 724698.81
A36: Pool | B36: 772833 | C36: 1900 | D36: 149044
A37: Pump | B37: 624683 | C37: 5364.13 | D37: 37441.87
A38: Safety | B38: 514337 | C38: 14250.15 | D38: 118908.85
A39: Stationary | B39: 393887 | C39: 14165 | D39: 73115
A40: Tools | B40: 108973 | C40: 3892.15 | D40: 20624.85
A41: (blank)
A42: Grand Total | B42: 16315675 | C42: 307729.94 | D42: 2276007.06

Sheet Sheet5
A3: Sales | B3: Total revenue
A4: 2022 | B4: 175626
A5: 2023 | B5: 10807652
A6: 2024 | B6: 7916134
A7: (blank)
A8: Grand Total | B8: 18899412
A13: Sales | B13: Average of bcy_total
A14: 2022 | B14: 25089.42857
A15: 2023 | B15: 32358.23952 | E15: =(660/1001) -> 0.6593406593
A16: 2024 | B16: 29985.35606
A17: (blank)
A18: Grand Total | B18: 31238.69752
A23: Quote to Invoice | B23: On %age
A24: Quote to Conversion percentage | B24: =E15 -> 0.6593406593
A27: Top Categories (Sales) | F27: Top Categories (Orders)
A28: Sales | B28: Total revenue | C28: Count of Orders | D28: In percentage | F28: Sales | G28: Total revenue | H28: Count of orders
A29: Tools | B29: 133490 | C29: 10 | D29: =(GETPIVOTDATA("Count of Orders ",$A$28,"Category ","E")/GETPIVOTDATA("Count of Orders ",$A$28)) -> 0.1702479339 | F29: Plumbing | G29: 4179085 | H29: 208
A30: Stationary | B30: 481167 | C30: 34 | D30: =(GETPIVOTDATA("Count of Orders ",$A$28,"Category ","Plumbing")/GETPIVOTDATA("Count of Orders ",$A$28)) -> 0.3438016529 | F30: E | G30: 6165572 | H30: 103
A31: Safety | B31: 647496 | C31: 19 | D31: =(GETPIVOTDATA("Count of Orders ",$A$28,"Category ","HK")/GETPIVOTDATA("Count of Orders ",$A$28)) -> 0.1520661157 | F31: HK | G31: 2273209 | H31: 92
A32: Pump | B32: 667489 | C32: 10 | D32: =(GETPIVOTDATA("Count of Orders ",$A$28,"Category ","Media")/GETPIVOTDATA("Count of Orders ",$A$28)) -> 0.01983471074 | F32: Pool | G32: 923777 | H32: 65
A33: Pool | B33: 923777 | C33: 65 | D33: =(GETPIVOTDATA("Count of Orders ",$A$28,"Category ","BU")/GETPIVOTDATA("Count of Orders ",$A$28)) -> 0.06115702479 | F33: BU | G33: 1350385 | H33: 37
A34: Plumbing | B34: 4179085 | C34: 208 | D34: =(GETPIVOTDATA("Count of Orders ",$A$28,"Category ","Pool")/GETPIVOTDATA("Count of Orders ",$A$28)) -> 0.1074380165 | F34: Stationary | G34: 481167 | H34: 34
A35: Media | B35: 1658285 | C35: 12 | D35: =(GETPIVOTDATA("Count of Orders ",$A$28,"Category ","Pump")/GETPIVOTDATA("Count of Orders ",$A$28)) -> 0.01652892562 | F35: Safety | G35: 647496 | H35: 19
A36: Machine | B36: 215819 | C36: 3 | D36: =(GETPIVOTDATA("Count of Orders ",$A$28,"Category ","Safety")/GETPIVOTDATA("Count of Orders ",$A$28)) -> 0.03140495868 | F36: Media | G36: 1658285 | H36: 12
A37: HK | B37: 2273209 | C37: 92 | D37: =(GETPIVOTDATA("Count of Orders ",$A$28,"Category ","Stationary")/GETPIVOTDATA("Count of Orders ",$A$28)) -> 0.05619834711 | F37: Tools | G37: 133490 | H37: 10
A38: Hardware | B38: 125446 | C38: 7 | D38: =(GETPIVOTDATA("Count of Orders ",$A$28,"Category ","Machine")/GETPIVOTDATA("Count of Orders ",$A$28)) -> 0.004958677686 | F38: Pump | G38: 667489 | H38: 10
A39: Electronics | B39: 78192 | C39: 5 | D39: =(GETPIVOTDATA("Count of Orders ",$A$28,"Category ","Tools")/GETPIVOTDATA("Count of Orders ",$A$28)) -> 0.01652892562 | F39: Hardware | G39: 125446 | H39: 7
A40: E | B40: 6165572 | C40: 103 | D40: =(GETPIVOTDATA("Count of Orders ",$A$28,"Category ","Hardware")/GETPIVOTDATA("Count of Orders ",$A$28)) -> 0.01157024793 | F40: Electronics | G40: 78192 | H40: 5
A41: BU | B41: 1350385 | C41: 37 | D41: =(GETPIVOTDATA("Count of Orders ",$A$28,"Category ","Electronics")/GETPIVOTDATA("Count of Orders ",$A$28)) -> 0.00826446281 | F41: Machine | G41: 215819 | H41: 3
A42: (blank) | F42: (blank)
A43: Grand Total | B43: 18899412 | C43: 605 | F43: Grand Total | G43: 18899412 | H43: 605
F45: Top 10 Customers (Orders)
F47: Customer name | G47: Total revenue | H47: Count of Orders
A48: Top 10 Customers (Revenue ) | F48: PRESTIGE FERNS RESIDENCY APARTMENT OWNERS ASSOCIATION | G48: 3041909 | H48: 83
F49: MANTRI TRANQUIL APARTMENT OWNERS ASSOCIATION | G49: 1287210 | H49: 58
F50: SNN Raj Greenbay Apartment Owners Association | G50: 1433542 | H50: 39
A51: Customer name | B51: Total revenue | C51: Count of Orders | F51: MJR PLATINA APARTMENT OWNERS ASSOCIATION | G51: 1867107 | H51: 33
A52: PRESTIGE FERNS RESIDENCY APARTMENT OWNERS ASSOCIATION | B52: 3041909 | C52: 83 | F52: DSR WOODWINDS APARTMENT OWNERS ASSOCIATION | G52: 490181 | H52: 19
A53: MJR PLATINA APARTMENT OWNERS ASSOCIATION | B53: 1867107 | C53: 33 | F53: VM TECH SERVICES | G53: 650530 | H53: 9
A54: TIRUMALA BUILDERS | B54: 1617059 | C54: 3 | F54: ENCARE SOLUTIONS & SERVICES | G54: 1172851 | H54: 8
A55: SNN Raj Greenbay Apartment Owners Association | B55: 1433542 | C55: 39 | F55: SRI VINAYAKA BUILDERS AND DEVELOPERS | G55: 1411228 | H55: 4
A56: SRI VINAYAKA BUILDERS AND DEVELOPERS | B56: 1411228 | C56: 4 | F56: TIRUMALA BUILDERS | G56: 1617059 | H56: 3
A57: MANTRI TRANQUIL APARTMENT OWNERS ASSOCIATION | B57: 1287210 | C57: 58 | F57: PARADIGM INTEGRATED FACILITY SERVICES PRIVATE LIMITED | G57: 484562 | H57: 2
A58: ENCARE SOLUTIONS & SERVICES | B58: 1172851 | C58: 8 | F58: Grand Total | G58: 13456179 | H58: 258
A59: VM TECH SERVICES | B59: 650530 | C59: 9
A60: DSR WOODWINDS APARTMENT OWNERS ASSOCIATION | B60: 490181 | C60: 19
A61: PARADIGM INTEGRATED FACILITY SERVICES PRIVATE LIMITED | B61: 484562 | C61: 2
A62: Grand Total | B62: 13456179 | C62: 258
A66: Top Customer Category Purchase
A69: Customer name | B69: Total revenue | C69: Count of Orders
A70: PRESTIGE FERNS RESIDENCY APARTMENT OWNERS ASSOCIATION | B70: 3041909 | C70: 83
A71: E | B71: 745854 | C71: 23
A72: BU | B72: 645927 | C72: 15
A73: Plumbing | B73: 538758 | C73: 14
A74: HK | B74: 485211 | C74: 6
A75: Media | B75: 162944 | C75: 3
A76: Safety | B76: 113242 | C76: 5
A77: Hardware | B77: 93305 | C77: 5
A78: Tools | B78: 78320 | C78: 3
A79: Pump | B79: 77054 | C79: 3
A80: Electronics | B80: 74665 | C80: 4
A81: Stationary | B81: 17708 | C81: 1
A82: Pool | B82: 8921 | C82: 1
A83: Grand Total | B83: 3041909 | C83: 83

Sheet Sheet2
A1: Sales | B1: Sum of Gross Profit | C1: Total revenue
A2: 2022 | B2: 28739.82 | C2: 175626
A3: 2023 | B3: 1246379.54 | C3: 10807652
A4: 2024 | B4: 1000887.7 | C4: 7916134
A5: (blank)
A6: Grand Total | B6: 2276007.06 | C6: 18899412

Sheet Data Sheet
A1: invoice_id | B1: status | C1: Date | D1: Year | E1: Month | F1: Financial Year | G1: due_date | H1: invoice_number | I1: reference_number | J1: customer_name | K1: Category | L1: Type of Bussiness | M1: bcy_total | N1: COGS | O1: Logistics | P1: Gross Profit | Q1: Profit percentage | R1: currency_code | S1: currency_id | T1: customer_id | U1: price_precision | V1: exchange_rate
A2: 976748000000147010 | B2: paid | C2: 2022-09-08 | D2: =YEAR(C2) -> 2022 | E2: =TEXT(C2,"mmm") -> Sep | F2: 2022-23 | G2: 2022-09-08 | H2: INV-000001 | I2: SO-00001 | J2: Sobha Morzaria Grandeur Apartment Owners Association | K2: HK | L2: B2B | M2: 23041 | N2: 19870 | O2: 0 | P2: =(Invoice[[#This Row],[bcy_total]]-Invoice[[#This Row],[COGS ]]-Invoice[[#This Row],[Logistics]]) -> 3171 | Q2: =(_xlfn.PERCENTOF(Invoice[[#This Row],[Gross Profit ]],Invoice[[#This Row],[bcy_total]])) -> 0.1376242351
A3: 976748000000166085 | B3: paid | C3: 2022-09-26 | D3: 2022 | E3: Sep | F3: 2022-23 | G3: 2022-10-03 | H3: INV-000002 | I3: SO-00002 | J3: SNN Raj Greenbay Apartment Owners Association | K3: E | L3: B2B | M3: 73080 | N3: 58980 | O3: =(M3*1%) -> 730.8 | P3: =(Invoice[[#This Row],[bcy_total]]-Invoice[[#This Row],[COGS ]]-Invoice[[#This Row],[Logistics]]) -> 13369.2 | Q3: =(_xlfn.PERCENTOF(Invoice[[#This Row],[Gross Profit ]],Invoice[[#This Row],[bcy_total]])) -> 0.1829392447
A4: 976748000000166131 | B4: paid | C4: 2022-09-26 | D4: 2022 | E4: Sep | F4: 2022-23 | G4: 2022-10-11 | H4: INV-000003 | J4: SNN Raj Greenbay Apartment Owners Association | K4: Safety | L4: B2B | M4: 44250 | N4: 39058 | O4: =(M4*3%) -> 1327.5 | P4: =(Invoice[[#This Row],[bcy_total]]-Invoice[[#This Row],[COGS ]]-Invoice[[#This Row],[Logistics]]) -> 3864.5 | Q4: =(_xlfn.PERCENTOF(Invoice[[#This Row],[Gross Profit ]],Invoice[[#This Row],[bcy_total]])) -> 0.08733333333
A5: 976748000000332013 | B5: paid | C5: 2022-11-07 | D5: 2022 | E5: Nov | F5: 2022-23 | G5: 2022-11-22 | H5: INV-SF-000004 | J5: SNN Raj Greenbay Apartment Owners Association | K5: Safety | L5: B2B | M5: 9204 | N5: 8378 | O5: =(M5*5%) -> 460.2 | P5: =(Invoice[[#This Row],[bcy_total]]-Invoice[[#This Row],[COGS ]]-Invoice[[#This Row],[Logistics]]) -> 365.8 | Q5: =(_xlfn.PERCENTOF(Invoice[[#This Row],[Gross Profit ]],Invoice[[#This Row],[bcy_total]])) -> 0.03974358974
A6: 976748000000356007 | B6: paid | C6: 2022-11-12 | D6: 2022 | E6: Nov | F6: 2022-23 | G6: 2022-11-27 | H6: INV-SF-000005 | J6: SNN Raj Greenbay Apartment Owners Association | K6: BU | L6: B2B | M6: 14042 | N6: 8083 | O6: =(M6*4%) -> 561.68 | P6: =(Invoice[[#This Row],[bcy_total]]-Invoice[[#This Row],[COGS ]]-Invoice[[#This Row],[Logistics]]) -> 5397.32 | Q6: =(_xlfn.PERCENTOF(Invoice[[#This Row],[Gross Profit ]],Invoice[[#This Row],[bcy_total]])) -> 0.3843697479
A7: 976748000000514019 | B7: paid | C7: 2022-12-22 | D7: 2022 | E7: Dec | F7: 2022-23 | G7: 2023-01-06 | H7: INV-SF-000006 | J7: SNN Raj Greenbay Apartment Owners Association | K7: Pool | L7: B2B | M7: 4909 | N7: 2124 | O7: 0 | P7: =(Invoice[[#This Row],[bcy_total]]-Invoice[[#This Row],[COGS ]]-Invoice[[#This Row],[Logistics]]) -> 2785 | Q7: =(_xlfn.PERCENTOF(Invoice[[#This Row],[Gross Profit ]],Invoice[[#This Row],[bcy_total]])) -> 0.5673253208
A8: 976748000000576003 | B8: paid | C8: 2022-12-24 | D8: 2022 | E8: Dec | F8: 2022-23 | G8: 2022-12-24 | H8: INV-SF-000007 | I8: SO-00006 | J8: Mr. Ram Murthi | K8: E | L8: B2C | M8: 7100 | N8: 7100 | O8: =(M8*3%) -> 213 | P8: =(Invoice[[#This Row],[bcy_total]]-Invoice[[#This Row],[COGS ]]-Invoice[[#This Row],[Logistics]]) -> -213 | Q8: =(_xlfn.PERCENTOF(Invoice[[#This Row],[Gross Profit ]],Invoice[[#This Row],[bcy_total]])) -> -0.03
A9: 976748000000584310 | B9: paid | C9: 2023-01-01 | D9: 2023 | E9: Jan | F9: 2022-23 | G9: 2023-01-01 | H9: INV-SF-000009 | I9: SO-00007 | J9: Teja Environ Services | K9: Media | L9: B2B | M9: 302502 | N9: =(224200+36294) -> 260494 | O9: =(M9*1.5%) -> 4537.53 | P9: =(Invoice[[#This Row],[bcy_total]]-Invoice[[#This Row],[COGS ]]-Invoice[[#This Row],[Logistics]]) -> 37470.47 | Q9: =(_xlfn.PERCENTOF(Invoice[[#This Row],[Gross Profit ]],Invoice[[#This Row],[bcy_total]])) -> 0.1238685033
A10: 976748000000700228 | B10: paid | C10: 2023-01-09 | D10: 2023 | E10: Jan | F10: 2022-23 | G10: 2023-01-09 | H10: INV-SF-000010 | I10: SO-00010 | J10: PARADIGM INTEGRATED FACILITY SERVICES PRIVATE LIMITED | K10: Plumbing | L10: B2B | M10: 252586 | N10: 191116 | O10: =(M10*1%) -> 2525.86 | P10: =(Invoice[[#This Row],[bcy_total]]-Invoice[[#This Row],[COGS ]]-Invoice[[#This Row],[Logistics]]) -> 58944.14 | Q10: =(_xlfn.PERCENTOF(Invoice[[#This Row],[Gross Profit ]],Invoice[[#This Row],[bcy_total]])) -> 0.2333626567
A11: 976748000000693053 | B11: paid | C11: 2023-01-06 | D11: 2023 | E11: Jan | F11: 2022-23 | G11: 2023-01-21 | H11: INV-SF-000011 | I11: SO-00012 | J11: SNN Raj Greenbay Apartment Owners Association | K11: Plumbing | L11: B2B | M11: 82128 | N11: 55260 | O11: =(M11*1%) -> 821.28 | P11: =(Invoice[[#This Row],[bcy_total]]-Invoice[[#This Row],[COGS ]]-Invoice[[#This Row],[Logistics]]) -> 26046.72 | Q11: =(_xlfn.PERCENTOF(Invoice[[#This Row],[Gross Profit ]],Invoice[[#This Row],[bcy_total]])) -> 0.3171478667
A12: 976748000001068828 | B12: paid | C12: 2023-01-12 | D12: 2023 | E12: Jan | F12: 2022-23 | G12: 2023-01-12 | H12: INV-SF-000012 | I12: SO-00009 | J12: DSR WOODWINDS APARTMENT OWNERS ASSOCIATION | K12: Plumbing | L12: B2B | M12: 39545 | N12: 16298 | O12: =(M12*2%) -> 790.9 | P12: =(Invoice[[#This Row],[bcy_total]]-Invoice[[#This Row],[COGS ]]-Invoice[[#This Row],[Logistics]]) -> 22456.1 | Q12: =(_xlfn.PERCENTOF(Invoice[[#This Row],[Gross Profit ]],Invoice[[#This Row],[bcy_total]])) -> 0.5678619294
A13: 976748000000696351 | B13: paid | C13: 2023-01-12 | D13: 2023 | E13: Jan | F13: 2022-23 | G13: 2023-01-12 | H13: INV-SF-000013 | I13: SO-00014 | J13: CASA PARADISO 2 SUBCOMMITTEE | K13: HK | L13: B2B | M13: 9912 | N13: 8968 | O13: 0 | P13: =(Invoice[[#This Row],[bcy_total]]-Invoice[[#This Row],[COGS ]]-Invoice[[#This Row],[Logistics]]) -> 944 | Q13: =(_xlfn.PERCENTOF(Invoice[[#This Row],[Gross Profit ]],Invoice[[#This Row],[bcy_total]])) -> 0.09523809524
A14: 976748000000696445 | B14: paid | C14: 2023-01-12 | D14: 2023 | E14: Jan | F14: 2022-23 | G14: 2023-01-12 | H14: INV-SF-000014 | I14: SO-00015 | J14: CASA PARADISO 2 SUBCOMMITTEE | K14: BU | L14: B2B | M14: 23015 | N14: 21523 | O14: =(M14*3%) -> 690.45 | P14: =(Invoice[[#This Row],[bcy_total]]-Invoice[[#This Row],[COGS ]]-Invoice[[#This Row],[Logistics]]) -> 801.55 | Q14: =(_xlfn.PERCENTOF(Invoice[[#This Row],[Gross Profit ]],Invoice[[#This Row],[bcy_total]])) -> 0.03482728655
A15: 976748000000740047 | B15: overdue | C15: 2023-01-13 | D15: 2023 | E15: Jan | F15: 2022-23 | G15: 2023-01-28 | H15: INV-SF-000015 | I15: SO-00017 | J15: SNN Raj Greenbay Apartment Owners Association | K15: E | L15: B2B | M15: 1922 | N15: 1580 | O15: =(M15*10%) -> 192.2 | P15: =(Invoice[[#This Row],[bcy_total]]-Invoice[[#This Row],[COGS ]]-Invoice[[#This Row],[Logistics]]) -> 149.8 | Q15: =(_xlfn.PERCENTOF(Invoice[[#This Row],[Gross Profit ]],Invoice[[#This Row],[bcy_total]])) -> 0.0779396462
A16: 976748000000747113 | B16: paid | C16: 2023-01-14 | D16: 2023 | E16: Jan | F16: 2022-23 | G16: 2023-01-14 | H16: INV-SF-000016 | I16: SO-00018 | J16: Teja Environ Services w | K16: Machine | L16: B2B | M16: 59525 | N16: 53926 | O16: =(M16*1%) -> 595.25 | P16: =(Invoice[[#This Row],[bcy_total]]-Invoice[[#This Row],[COGS ]]-Invoice[[#This Row],[Logistics]]) -> 5003.75 | Q16: =(_xlfn.PERCENTOF(Invoice[[#This Row],[Gross Profit ]],Invoice[[#This Row],[bcy_total]])) -> 0.08406131877
A17: 976748000000747330 | B17: paid | C17: 2023-01-16 | D17: 2023 | E17: Jan | F17: 2022-23 | G17: 2023-01-16 | H17: INV-SF-000017 | J17: MANTRI TRANQUIL APARTMENT OWNERS ASSOCIATION | K17: Plumbing | L17: B2B | M17: 22078 | N17: 23021 | O17: =(M17*5%) -> 1103.9 | P17: =(Invoice[[#This Row],[bcy_total]]-Invoice[[#This Row],[COGS ]]-Invoice[[#This Row],[Logistics]]) -> -2046.9 | Q17: =(_xlfn.PERCENTOF(Invoice[[#This Row],[Gross Profit ]],Invoice[[#This Row],[bcy_total]])) -> -0.09271220219
A18: 976748000000764080 | B18: paid | C18: 2023-01-20 | D18: 2023 | E18: Jan | F18: 2022-23 | G18: 2023-01-20 | H18: INV-SF-000018 | I18: SO-00021 | J18: CASA PARADISO 2 SUBCOMMITTEE | K18: Safety | L18: B2B | M18: 33789 | N18: 17440 | O18: =(M18*5%) -> 1689.45 | P18: =(Invoice[[#This Row],[bcy_total]]-Invoice[[#This Row],[COGS ]]-Invoice[[#This Row],[Logistics]]) -> 14659.55 | Q18: =(_xlfn.PERCENTOF(Invoice[[#This Row],[Gross Profit ]],Invoice[[#This Row],[bcy_total]])) -> 0.4338556927
A19: 976748000000764138 | B19: paid | C19: 2023-01-20 | D19: 2023 | E19: Jan | F19: 2022-23 | G19: 2023-01-20 | H19: INV-SF-000019 | I19: SO-00020 | J19: Uniservice Apartment Solutions LLP | K19: Tools | L19: B2B | M19: 4937 | N19: 4895 | O19: =(M19*4%) -> 197.48 | P19: =(Invoice[[#This Row],[bcy_total]]-Invoice[[#This Row],[COGS ]]-Invoice[[#This Row],[Logistics]]) -> -155.48 | Q19: =(_xlfn.PERCENTOF(Invoice[[#This Row],[Gross Profit ]],Invoice[[#This Row],[bcy_total]])) -> -0.0314928094
A20: 976748000000764190 | B20: overdue | C20: 2023-01-20 | D20: 2023 | E20: Jan | F20: 2022-23 | G20: 2023-02-04 | H20: INV-SF-000020 | I20: SO-00019 | J20: SNN Raj Greenbay Apartment Owners Association | K20: E | L20: B2B | M20: 5274 | N20: 4897 | O20: =(M20*5%) -> 263.7 | P20: =(Invoice[[#This Row],[bcy_total]]-Invoice[[#This Row],[COGS ]]-Invoice[[#This Row],[Logistics]]) -> 113.3 | Q20: =(_xlfn.PERCENTOF(Invoice[[#This Row],[Gross Profit ]],Invoice[[#This Row],[bcy_total]])) -> 0.02148274554
A21: 976748000000785011 | B21: paid | C21: 2023-01-21 | D21: 2023 | E21: Jan | F21: 2022-23 | G21: 2023-01-21 | H21: INV-SF-000021 | I21: SO-00022 | J21: Hm Vibha Tower | K21: E | L21: B2B | M21: 1350 | N21: 1007 | O21: =(M21*10%) -> 135 | P21: =(Invoice[[#This Row],[bcy_total]]-Invoice[[#This Row],[COGS ]]-Invoice[[#This Row],[Logistics]]) -> 208 | Q21: =(_xlfn.PERCENTOF(Invoice[[#This Row],[Gross Profit ]],Invoice[[#This Row],[bcy_total]])) -> 0.1540740741
A22: 976748000000817003 | B22: paid | C22: 2023-01-24 | D22: 2023 | E22: Jan | F22: 2022-23 | G22: 2023-01-24 | H22: INV-SF-000022 | I22: SO-00023 | J22: Uniservice Apartment Solutions LLP | K22: Pool | L22: B2B | M22: 767 | N22: 489 | O22: 0 | P22: =(Invoice[[#This Row],[bcy_total]]-Invoice[[#This Row],[COGS ]]-Invoice[[#This Row],[Logistics]]) -> 278 | Q22: =(_xlfn.PERCENTOF(Invoice[[#This Row],[Gross Profit ]],Invoice[[#This Row],[bcy_total]])) -> 0.3624511082
A23: 976748000000806160 | B23: paid | C23: 2023-01-24 | D23: 2023 | E23: Jan | F23: 2022-23 | G23: 2023-01-24 | H23: INV-SF-000023 | I23: SO-00024 | J23: SPIN MASTER INDIA PRIVATE LIMITED | K23: Plumbing | L23: B2B | M23: 7080 | N23: 4800 | O23: 390 | P23: =(Invoice[[#This Row],[bcy_total]]-Invoice[[#This Row],[COGS ]]-Invoice[[#This Row],[Logistics]]) -> 1890 | Q23: =(_xlfn.PERCENTOF(Invoice[[#This Row],[Gross Profit ]],Invoice[[#This Row],[bcy_total]])) -> 0.2669491525
A24: 976748000000828076 | B24: paid | C24: 2023-01-25 | D24: 2023 | E24: Jan | F24: 2022-23 | G24: 2023-01-25 | H24: INV-SF-000024 | I24: SO-00025 | J24: Teja Environ Services | K24: Pool | L24: B2B | M24: 14396 | N24: 13983 | O24: 0 | P24: =(Invoice[[#This Row],[bcy_total]]-Invoice[[#This Row],[COGS ]]-Invoice[[#This Row],[Logistics]]) -> 413 | Q24: =(_xlfn.PERCENTOF(Invoice[[#This Row],[Gross Profit ]],Invoice[[#This Row],[bcy_total]])) -> 0.02868852459
A25: 976748000000848627 | B25: paid | C25: 2023-01-27 | D25: 2023 | E25: Jan | F25: 2022-23 | G25: 2023-01-27 | H25: INV-SF-000025 | J25: CASA PARADISO 2 SUBCOMMITTEE | K25: BU | L25: B2B | M25: 10613 | N25: 0 | O25: 4000 | P25: =(Invoice[[#This Row],[bcy_total]]-Invoice[[#This Row],[COGS ]]-Invoice[[#This Row],[Logistics]]) -> 6613 | Q25: =(_xlfn.PERCENTOF(Invoice[[#This Row],[Gross Profit ]],Invoice[[#This Row],[bcy_total]])) -> 0.6231037407
A26: 976748000000847033 | B26: paid | C26: 2023-01-28 | D26: 2023 | E26: Jan | F26: 2022-23 | G26: 2023-01-28 | H26: INV-SF-000026 | J26: Teja Environ Services | K26: Pool | L26: B2B | M26: 3250 | N26: 3000 | O26: 0 | P26: =(Invoice[[#This Row],[bcy_total]]-Invoice[[#This Row],[COGS ]]-Invoice[[#This Row],[Logistics]]) -> 250 | Q26: =(_xlfn.PERCENTOF(Invoice[[#This Row],[Gross Profit ]],Invoice[[#This Row],[bcy_total]])) -> 0.07692307692
A27: 976748000000847094 | B27: paid | C27: 2023-01-28 | D27: 2023 | E27: Jan | F27: 2022-23 | G27: 2023-01-28 | H27: INV-SF-000027 | J27: DSR WOODWINDS APARTMENT OWNERS ASSOCIATION | K27: Pool | L27: B2B | M27: 13000 | N27: 12000 | O27: 0 | P27: =(Invoice[[#This Row],[bcy_total]]-Invoice[[#This Row],[COGS ]]-Invoice[[#This Row],[Logistics]]) -> 1000 | Q27: =(_xlfn.PERCENTOF(Invoice[[#This Row],[Gross Profit ]],Invoice[[#This Row],[bcy_total]])) -> 0.07692307692
A28: 976748000000866057 | B28: paid | C28: 2023-01-30 | D28: 2023 | E28: Jan | F28: 2022-23 | G28: 2023-01-30 | H28: INV-SF-000028 | I28: SO-00026 | J28: Teja Environ Services | K28: Media | L28: B2B | M28: 24710 | N28: 22472 | O28: =(M28*1%) -> 247.1 | P28: =(Invoice[[#This Row],[bcy_total]]-Invoice[[#This Row],[COGS ]]-Invoice[[#This Row],[Logistics]]) -> 1990.9 | Q28: =(_xlfn.PERCENTOF(Invoice[[#This Row],[Gross Profit ]],Invoice[[#This Row],[bcy_total]])) -> 0.08057061918
A29: 976748000000866125 | B29: paid | C29: 2023-01-30 | D29: 2023 | E29: Jan | F29: 2022-23 | G29: 2023-01-30 | H29: INV-SF-000029 | J29: MANTRI TRANQUIL APARTMENT OWNERS ASSOCIATION | K29: E | L29: B2B | M29: 46315 | N29: 34680 | O29: =(M29*1%) -> 463.15 | P29: =(Invoice[[#This Row],[bcy_total]]-Invoice[[#This Row],[COGS ]]-Invoice[[#This Row],[Logistics]]) -> 11171.85 | Q29: =(_xlfn.PERCENTOF(Invoice[[#This Row],[Gross Profit ]],Invoice[[#This Row],[bcy_total]])) -> 0.2412145093
A30: 976748000000911167 | B30: overdue | C30: 2023-02-01 | D30: 2023 | E30: Feb | F30: 2022-23 | G30: 2023-02-01 | H30: INV-SF-000030 | I30: SO-00027 | J30: Teja Environ Services | K30: Plumbing | L30: B2B | M30: 2272 | N30: 1980 | O30: 180 | P30: =(Invoice[[#This Row],[bcy_total]]-Invoice[[#This Row],[COGS ]]-Invoice[[#This Row],[Logistics]]) -> 112 | Q30: =(_xlfn.PERCENTOF(Invoice[[#This Row],[Gross Profit ]],Invoice[[#This Row],[bcy_total]])) -> 0.04929577465
A31: 976748000000948176 | B31: paid | C31: 2023-02-03 | D31: 2023 | E31: Feb | F31: 2022-23 | G31: 2023-02-03 | H31: INV-SF-000031 | I31: SO-00028 | J31: BELEGERE GROUP SERVICES | K31: Pool | L31: B2B | M31: 6136 | N31: 5900 | O31: 0 | P31: =(Invoice[[#This Row],[bcy_total]]-Invoice[[#This Row],[COGS ]]-Invoice[[#This Row],[Logistics]]) -> 236 | Q31: =(_xlfn.PERCENTOF(Invoice[[#This Row],[Gross Profit ]],Invoice[[#This Row],[bcy_total]])) -> 0.03846153846
A32: 976748000000948262 | B32: paid | C32: 2023-02-03 | D32: 2023 | E32: Feb | F32: 2022-23 | G32: 2023-02-03 | H32: INV-SF-000032 | I32: SO-00029 | J32: Teja Environ Services | K32: Pool | L32: B2B | M32: 16250 | N32: 16250 | O32: 0 | P32: =(Invoice[[#This Row],[bcy_total]]-Invoice[[#This Row],[COGS ]]-Invoice[[#This Row],[Logistics]]) -> 0 | Q32: =(_xlfn.PERCENTOF(Invoice[[#This Row],[Gross Profit ]],Invoice[[#This Row],[bcy_total]])) -> 0
A33: 976748000000948350 | B33: paid | C33: 2023-02-03 | D33: 2023 | E33: Feb | F33: 2022-23 | G33: 2023-02-03 | H33: INV-SF-000033 | I33: SO-00030 | J33: SPIN MASTER INDIA PRIVATE LIMITED | K33: Plumbing | L33: B2B | M33: 5664 | N33: 4800 | O33: 280 | P33: =(Invoice[[#This Row],[bcy_total]]-Invoice[[#This Row],[COGS ]]-Invoice[[#This Row],[Logistics]]) -> 584 | Q33: =(_xlfn.PERCENTOF(Invoice[[#This Row],[Gross Profit ]],Invoice[[#This Row],[bcy_total]])) -> 0.1031073446
A34: 976748000001068978 | B34: paid | C34: 2023-02-06 | D34: 2023 | E34: Feb | F34: 2022-23 | G34: 2023-02-06 | H34: INV-SF-000034 | J34: CASA PARADISO 2 SUBCOMMITTEE | K34: HK | L34: B2B | M34: 2272 | N34: 1652 | O34: 0 | P34: =(Invoice[[#This Row],[bcy_total]]-Invoice[[#This Row],[COGS ]]-Invoice[[#This Row],[Logistics]]) -> 620 | Q34: =(_xlfn.PERCENTOF(Invoice[[#This Row],[Gross Profit ]],Invoice[[#This Row],[bcy_total]])) -> 0.2728873239
A35: 976748000001230137 | B35: paid | C35: 2023-02-08 | D35: 2023 | E35: Feb | F35: 2022-23 | G35: 2023-02-08 | H35: INV-SF-000035 | I35: SO-00033 | J35: Abhay Vadgaonkar | K35: Plumbing | L35: B2C | M35: 1014 | N35: 890 | O35: =(M35*10%) -> 101.4 | P35: =(Invoice[[#This Row],[bcy_total]]-Invoice[[#This Row],[COGS ]]-Invoice[[#This Row],[Logistics]]) -> 22.6 | Q35: =(_xlfn.PERCENTOF(Invoice[[#This Row],[Gross Profit ]],Invoice[[#This Row],[bcy_total]])) -> 0.02228796844
A36: 976748000001230197 | B36: paid | C36: 2023-02-08 | D36: 2023 | E36: Feb | F36: 2022-23 | G36: 2023-02-08 | H36: INV-SF-000036 | I36: SO-00034 | J36: CGK Water Solutions | K36: Pool | L36: B2B | M36: 7186 | N36: 6372 | O36: 0 | P36: =(Invoice[[#This Row],[bcy_total]]-Invoice[[#This Row],[COGS ]]-Invoice[[#This Row],[Logistics]]) -> 814 | Q36: =(_xlfn.PERCENTOF(Invoice[[#This Row],[Gross Profit ]],Invoice[[#This Row],[bcy_total]])) -> 0.1132758141
A37: 976748000001230430 | B37: paid | C37: 2023-02-09 | D37: 2023 | E37: Feb | F37: 2022-23 | G37: 2023-02-09 | H37: INV-SF-000037 | J37: SPIN MASTER INDIA PRIVATE LIMITED | K37: Plumbing | L37: B2B | M37: 167 | N37: 0 | O37: 190 | P37: =(Invoice[[#This Row],[bcy_total]]-Invoice[[#This Row],[COGS ]]-Invoice[[#This Row],[Logistics]]) -> -23 | Q37: =(_xlfn.PERCENTOF(Invoice[[#This Row],[Gross Profit ]],Invoice[[#This Row],[bcy_total]])) -> -0.1377245509
A38: 976748000001251024 | B38: paid | C38: 2023-02-09 | D38: 2023 | E38: Feb | F38: 2022-23 | G38: 2023-03-08 | H38: INV-SF-000038 | I38: SO-00036 | J38: Uniservice Apartment Solutions LLP | K38: HK | L38: B2B | M38: 7507 | N38: 4911 | O38: 0 | P38: =(Invoice[[#This Row],[bcy_total]]-Invoice[[#This Row],[COGS ]]-Invoice[[#This Row],[Logistics]]) -> 2596 | Q38: =(_xlfn.PERCENTOF(Invoice[[#This Row],[Gross Profit ]],Invoice[[#This Row],[bcy_total]])) -> 0.3458105768
A39: 976748000001260068 | B39: paid | C39: 2023-02-09 | D39: 2023 | E39: Feb | F39: 2022-23 | G39: 2023-03-08 | H39: INV-SF-000039 | I39: SO-00035 | J39: Uniservice Apartment Solutions LLP | K39: HK | L39: B2B | M39: 29563 | N39: 31672 | O39: 0 | P39: =(Invoice[[#This Row],[bcy_total]]-Invoice[[#This Row],[COGS ]]-Invoice[[#This Row],[Logistics]]) -> -2109 | Q39: =(_xlfn.PERCENTOF(Invoice[[#This Row],[Gross Profit ]],Invoice[[#This Row],[bcy_total]])) -> -0.07133917397
A40: 976748000001296050 | B40: paid | C40: 2023-02-10 | D40: 2023 | E40: Feb | F40: 2022-23 | G40: 2023-02-10 | H40: INV-SF-000040 | I40: SO-00037 | J40: SOBHA MYKONOS SUB COMMITTE | K40: E | L40: B2B | M40: 7359 | N40: 6230 | O40: 380 | P40: =(Invoice[[#This Row],[bcy_total]]-Invoice[[#This Row],[COGS ]]-Invoice[[#This Row],[Logistics]]) -> 749 | Q40: =(_xlfn.PERCENTOF(Invoice[[#This Row],[Gross Profit ]],Invoice[[#This Row],[bcy_total]])) -> 0.1017801332
A41: 976748000001280660 | B41: paid | C41: 2023-02-11 | D41: 2023 | E41: Feb | F41: 2022-23 | G41: 2023-02-11 | H41: INV-SF-000041 | I41: SO-00039 | J41: Shailesh Ravriya | K41: HK | L41: B2C | M41: 685 | N41: 604 | O41: 0 | P41: =(Invoice[[#This Row],[bcy_total]]-Invoice[[#This Row],[COGS ]]-Invoice[[#This Row],[Logistics]]) -> 81 | Q41: =(_xlfn.PERCENTOF(Invoice[[#This Row],[Gross Profit ]],Invoice[[#This Row],[bcy_total]])) -> 0.1182481752
A42: 976748000001296104 | B42: paid | C42: 2023-02-11 | D42: 2023 | E42: Feb | F42: 2022-23 | G42: 2023-02-11 | H42: INV-SF-000042 | I42: SO-00038 | J42: CLOMOSO TECHNOLOGIES PRIVATE LIMITED | K42: Plumbing | L42: B2B | M42: 77075 | N42: 27629 | O42: =(M42*1%) -> 770.75 | P42: =(Invoice[[#This Row],[bcy_total]]-Invoice[[#This Row],[COGS ]]-Invoice[[#This Row],[Logistics]]) -> 48675.25 | Q42: =(_xlfn.PERCENTOF(Invoice[[#This Row],[Gross Profit ]],Invoice[[#This Row],[bcy_total]])) -> 0.6315309763
A43: 976748000001304146 | B43: paid | C43: 2023-02-14 | D43: 2023 | E43: Feb | F43: 2022-23 | G43: 2023-02-14 | H43: INV-SF-000043 | I43: SO-00041 | J43: Hm Vibha Tower | K43: Tools | L43: B2B | M43: 888 | N43: 750 | O43: 180 | P43: =(Invoice[[#This Row],[bcy_total]]-Invoice[[#This Row],[COGS ]]-Invoice[[#This Row],[Logistics]]) -> -42 | Q43: =(_xlfn.PERCENTOF(Invoice[[#This Row],[Gross Profit ]],Invoice[[#This Row],[bcy_total]])) -> -0.0472972973
A44: 976748000001304257 | B44: paid | C44: 2023-02-14 | D44: 2023 | E44: Feb | F44: 2022-23 | G44: 2023-02-14 | H44: INV-SF-000044 | I44: SO-00042 | J44: Hm Vibha Tower | K44: Plumbing | L44: B2B | M44: 14449 | N44: 11876 | O44: =(M44*1%) -> 144.49 | P44: =(Invoice[[#This Row],[bcy_total]]-Invoice[[#This Row],[COGS ]]-Invoice[[#This Row],[Logistics]]) -> 2428.51 | Q44: =(_xlfn.PERCENTOF(Invoice[[#This Row],[Gross Profit ]],Invoice[[#This Row],[bcy_total]])) -> 0.1680746072
A45: 976748000001325437 | B45: paid | C45: 2023-02-15 | D45: 2023 | E45: Feb | F45: 2022-23 | G45: 2023-02-15 | H45: INV-SF-000045 | I45: SO-00043 | J45: PARADIGM INTEGRATED FACILITY SERVICES PRIVATE LIMITED | K45: BU | L45: B2B | M45: 231976 | N45: 229853 | O45: =(M45*1%) -> 2319.76 | P45: =(Invoice[[#This Row],[bcy_total]]-Invoice[[#This Row],[COGS ]]-Invoice[[#This Row],[Logistics]]) -> -196.76 | Q45: =(_xlfn.PERCENTOF(Invoice[[#This Row],[Gross Profit ]],Invoice[[#This Row],[bcy_total]])) -> -0.0008481911922
A46: 976748000001380057 | B46: paid | C46: 2023-02-07 | D46: 2023 | E46: Feb | F46: 2022-23 | G46: 2023-03-06 | H46: INV-SF-000046 | I46: SO-00031 | J46: Uniservice Apartment Solutions LLP | K46: HK | L46: B2B | M46: 3555 | N46: 3411 | O46: 0 | P46: =(Invoice[[#This Row],[bcy_total]]-Invoice[[#This Row],[COGS ]]-Invoice[[#This Row],[Logistics]]) -> 144 | Q46: =(_xlfn.PERCENTOF(Invoice[[#This Row],[Gross Profit ]],Invoice[[#This Row],[bcy_total]])) -> 0.04050632911
A47: 976748000001376003 | B47: paid | C47: 2023-02-17 | D47: 2023 | E47: Feb | F47: 2022-23 | G47: 2023-02-17 | H47: INV-SF-000047 | J47: SOBHA MYKONOS SUB COMMITTE | K47: E | L47: B2B | M47: 144 | N47: 180 | O47: 180 | P47: =(Invoice[[#This Row],[bcy_total]]-Invoice[[#This Row],[COGS ]]-Invoice[[#This Row],[Logistics]]) -> -216 | Q47: =(_xlfn.PERCENTOF(Invoice[[#This Row],[Gross Profit ]],Invoice[[#This Row],[bcy_total]])) -> -1.5
A48: 976748000001353621 | B48: paid | C48: 2023-02-17 | D48: 2023 | E48: Feb | F48: 2022-23 | G48: 2023-02-17 | H48: INV-SF-000048 | I48: SO-00046 | J48: CLOMOSO TECHNOLOGIES PRIVATE LIMITED | K48: Tools | L48: B2B | M48: 26537 | N48: 22610 | O48: =(M48*1%) -> 265.37 | P48: =(Invoice[[#This Row],[bcy_total]]-Invoice[[#This Row],[COGS ]]-Invoice[[#This Row],[Logistics]]) -> 3661.63 | Q48: =(_xlfn.PERCENTOF(Invoice[[#This Row],[Gross Profit ]],Invoice[[#This Row],[bcy_total]])) -> 0.1379820628
A49: 976748000001389046 | B49: paid | C49: 2023-02-18 | D49: 2023 | E49: Feb | F49: 2022-23 | G49: 2023-03-05 | H49: INV-SF-000049 | I49: SO-00047 | J49: SNN Raj Greenbay Apartment Owners Association | K49: BU | L49: B2B | M49: 9958 | N49: 8700 | O49: =(M49*10%) -> 995.8 | P49: =(Invoice[[#This Row],[bcy_total]]-Invoice[[#This Row],[COGS ]]-Invoice[[#This Row],[Logistics]]) -> 262.2 | Q49: =(_xlfn.PERCENTOF(Invoice[[#This Row],[Gross Profit ]],Invoice[[#This Row],[bcy_total]])) -> 0.02633058847
A50: 976748000001395076 | B50: paid | C50: 2023-02-21 | D50: 2023 | E50: Feb | F50: 2022-23 | G50: 2023-02-21 | H50: INV-SF-000050 | J50: MANTRI TRANQUIL APARTMENT OWNERS ASSOCIATION | K50: Plumbing | L50: B2B | M50: 160777 | N50: 47707 | O50: =(M50*1%) -> 1607.77 | P50: =(Invoice[[#This Row],[bcy_total]]-Invoice[[#This Row],[COGS ]]-Invoice[[#This Row],[Logistics]]) -> 111462.23 | Q50: =(_xlfn.PERCENTOF(Invoice[[#This Row],[Gross Profit ]],Invoice[[#This Row],[bcy_total]])) -> 0.6932722342
A51: 976748000001395143 | B51: overdue | C51: 2023-02-21 | D51: 2023 | E51: Feb | F51: 2022-23 | G51: 2023-02-21 | H51: INV-SF-000051 | J51: CLOMOSO TECHNOLOGIES PRIVATE LIMITED | K51: Tools | L51: B2B | M51: 3103 | N51: 2183 | O51: =(M51*10%) -> 310.3 | P51: =(Invoice[[#This Row],[bcy_total]]-Invoice[[#This Row],[COGS ]]-Invoice[[#This Row],[Logistics]]) -> 609.7 | Q51: =(_xlfn.PERCENTOF(Invoice[[#This Row],[Gross Profit ]],Invoice[[#This Row],[bcy_total]])) -> 0.1964872704
A52: 976748000001395329 | B52: paid | C52: 2023-02-21 | D52: 2023 | E52: Feb | F52: 2022-23 | G52: 2023-02-21 | H52: INV-SF-000052 | I52: SO-00048 | J52: DSR WOODWINDS APARTMENT OWNERS ASSOCIATION | K52: E | L52: B2B | M52: 13130 | N52: 12225 | O52: =(M52*1%) -> 131.3 | P52: =(Invoice[[#This Row],[bcy_total]]-Invoice[[#This Row],[COGS ]]-Invoice[[#This Row],[Logistics]]) -> 773.7 | Q52: =(_xlfn.PERCENTOF(Invoice[[#This Row],[Gross Profit ]],Invoice[[#This Row],[bcy_total]])) -> 0.05892612338
A53: 976748000001395411 | B53: paid | C53: 2023-02-21 | D53: 2023 | E53: Feb | F53: 2022-23 | G53: 2023-02-21 | H53: INV-SF-000053 | I53: SO-00049 | J53: Uniservice Apartment Solutions LLP | K53: BU | L53: B2B | M53: 19992 | N53: 15300 | O53: =(M53*1%) -> 199.92 | P53: =(Invoice[[#This Row],[bcy_total]]-Invoice[[#This Row],[COGS ]]-Invoice[[#This Row],[Logistics]]) -> 4492.08 | Q53: =(_xlfn.PERCENTOF(Invoice[[#This Row],[Gross Profit ]],Invoice[[#This Row],[bcy_total]])) -> 0.2246938776
A54: 976748000001475218 | B54: paid | C54: 2023-02-23 | D54: 2023 | E54: Feb | F54: 2022-23 | G54: 2023-02-23 | H54: INV-SF-000054 | I54: SO-00044 | J54: PRESTIGE FERNS RESIDENCY APARTMENT OWNERS ASSOCIATION | K54: BU | L54: B2B | M54: 9423 | N54: 8400 | O54: =(M54*5%) -> 471.15 | P54: =(Invoice[[#This Row],[bcy_total]]-Invoice[[#This Row],[COGS ]]-Invoice[[#This Row],[Logistics]]) -> 551.85 | Q54: =(_xlfn.PERCENTOF(Invoice[[#This Row],[Gross Profit ]],Invoice[[#This Row],[bcy_total]])) -> 0.05856415154
A55: 976748000001496025 | B55: paid | C55: 2023-02-24 | D55: 2023 | E55: Feb | F55: 2022-23 | G55: 2023-02-24 | H55: INV-SF-000055 | I55: SO-00052 | J55: MANTRI TRANQUIL APARTMENT OWNERS ASSOCIATION | K55: Pool | L55: B2B | M55: 21240 | N55: 16992 | O55: 0 | P55: =(Invoice[[#This Row],[bcy_total]]-Invoice[[#This Row],[COGS ]]-Invoice[[#This Row],[Logistics]]) -> 4248 | Q55: =(_xlfn.PERCENTOF(Invoice[[#This Row],[Gross Profit ]],Invoice[[#This Row],[bcy_total]])) -> 0.2
A56: 976748000001526041 | B56: overdue | C56: 2023-02-25 | D56: 2023 | E56: Feb | F56: 2022-23 | G56: 2023-02-25 | H56: INV-SF-000056 | I56: SO-00053 | J56: MANTRI TRANQUIL APARTMENT OWNERS ASSOCIATION | K56: Plumbing | L56: B2B | M56: 593 | N56: 489 | O56: 180 | P56: =(Invoice[[#This Row],[bcy_total]]-Invoice[[#This Row],[COGS ]]-Invoice[[#This Row],[Logistics]]) -> -76 | Q56: =(_xlfn.PERCENTOF(Invoice[[#This Row],[Gross Profit ]],Invoice[[#This Row],[bcy_total]])) -> -0.1281618887
A57: 976748000001552045 | B57: paid | C57: 2023-02-28 | D57: 2023 | E57: Feb | F57: 2022-23 | G57: 2023-02-28 | H57: INV-SF-000058 | J57: Sumadhura Silver Ripples | K57: Plumbing | L57: B2B | M57: 7589 | N57: 7045 | O57: 280 | P57: =(Invoice[[#This Row],[bcy_total]]-Invoice[[#This Row],[COGS ]]-Invoice[[#This Row],[Logistics]]) -> 264 | Q57: =(_xlfn.PERCENTOF(Invoice[[#This Row],[Gross Profit ]],Invoice[[#This Row],[bcy_total]])) -> 0.03478719199
A58: 976748000001551003 | B58: paid | C58: 2023-02-28 | D58: 2023 | E58: Feb | F58: 2022-23 | G58: 2023-02-28 | H58: INV-SF-000059 | J58: Sumadhura Silver Ripples | K58: Plumbing | L58: B2B | M58: 2878 | N58: 2670 | O58: =(M58*10%) -> 287.8 | P58: =(Invoice[[#This Row],[bcy_total]]-Invoice[[#This Row],[COGS ]]-Invoice[[#This Row],[Logistics]]) -> -79.8 | Q58: =(_xlfn.PERCENTOF(Invoice[[#This Row],[Gross Profit ]],Invoice[[#This Row],[bcy_total]])) -> -0.0277275886
A59: 976748000001552185 | B59: overdue | C59: 2023-02-28 | D59: 2023 | E59: Feb | F59: 2022-23 | G59: 2023-02-28 | H59: INV-SF-000060 | I59: SO-00054 | J59: MANTRI TRANQUIL APARTMENT OWNERS ASSOCIATION | K59: E | L59: B2B | M59: 71779 | N59: 58292 | O59: =(M59*1%) -> 717.79 | P59: =(Invoice[[#This Row],[bcy_total]]-Invoice[[#This Row],[COGS ]]-Invoice[[#This Row],[Logistics]]) -> 12769.21 | Q59: =(_xlfn.PERCENTOF(Invoice[[#This Row],[Gross Profit ]],Invoice[[#This Row],[bcy_total]])) -> 0.1778961813
A60: 976748000001576097 | B60: paid | C60: 2023-03-01 | D60: 2023 | E60: Mar | F60: 2022-23 | G60: 2023-03-01 | H60: INV-SF-000061 | J60: MANTRI TRANQUIL APARTMENT OWNERS ASSOCIATION | K60: E | L60: B2B | M60: 20650 | N60: 15700 | O60: =(M60*1%) -> 206.5 | P60: =(Invoice[[#This Row],[bcy_total]]-Invoice[[#This Row],[COGS ]]-Invoice[[#This Row],[Logistics]]) -> 4743.5 | Q60: =(_xlfn.PERCENTOF(Invoice[[#This Row],[Gross Profit ]],Invoice[[#This Row],[bcy_total]])) -> 0.2297094431
A61: 976748000001662095 | B61: paid | C61: 2023-03-04 | D61: 2023 | E61: Mar | F61: 2022-23 | G61: 2023-03-04 | H61: INV-SF-000062 | I61: SO-00056 | J61: MANTRI TRANQUIL APARTMENT OWNERS ASSOCIATION | K61: Plumbing | L61: B2B | M61: 3776 | N61: 3289 | O61: 240 | P61: =(Invoice[[#This Row],[bcy_total]]-Invoice[[#This Row],[COGS ]]-Invoice[[#This Row],[Logistics]]) -> 247 | Q61: =(_xlfn.PERCENTOF(Invoice[[#This Row],[Gross Profit ]],Invoice[[#This Row],[bcy_total]])) -> 0.06541313559
A62: 976748000001662257 | B62: overdue | C62: 2023-03-04 | D62: 2023 | E62: Mar | F62: 2022-23 | G62: 2023-03-04 | H62: INV-SF-000063 | J62: MANTRI TRANQUIL APARTMENT OWNERS ASSOCIATION | K62: Plumbing | L62: B2B | M62: 755 | N62: 890 | O62: 190 | P62: =(Invoice[[#This Row],[bcy_total]]-Invoice[[#This Row],[COGS ]]-Invoice[[#This Row],[Logistics]]) -> -325 | Q62: =(_xlfn.PERCENTOF(Invoice[[#This Row],[Gross Profit ]],Invoice[[#This Row],[bcy_total]])) -> -0.4304635762
A63: 976748000001770093 | B63: paid | C63: 2023-03-09 | D63: 2023 | E63: Mar | F63: 2022-23 | G63: 2023-03-09 | H63: INV-SF-000064 | I63: SO-00058 | J63: MANTRI TRANQUIL APARTMENT OWNERS ASSOCIATION | K63: Plumbing | L63: B2B | M63: 23221 | N63: 19967 | O63: =(M63*1%) -> 232.21 | P63: =(Invoice[[#This Row],[bcy_total]]-Invoice[[#This Row],[COGS ]]-Invoice[[#This Row],[Logistics]]) -> 3021.79 | Q63: =(_xlfn.PERCENTOF(Invoice[[#This Row],[Gross Profit ]],Invoice[[#This Row],[bcy_total]])) -> 0.1301317773
A64: 976748000001770345 | B64: paid | C64: 2023-03-09 | D64: 2023 | E64: Mar | F64: 2022-23 | G64: 2023-03-09 | H64: INV-SF-000065 | I64: SO-00057 | J64: Prasanta Manna | K64: Plumbing | L64: B2C | M64: 739 | N64: 880 | O64: 190 | P64: =(Invoice[[#This Row],[bcy_total]]-Invoice[[#This Row],[COGS ]]-Invoice[[#This Row],[Logistics]]) -> -331 | Q64: =(_xlfn.PERCENTOF(Invoice[[#This Row],[Gross Profit ]],Invoice[[#This Row],[bcy_total]])) -> -0.447902571
A65: 976748000001786023 | B65: paid | C65: 2023-03-10 | D65: 2023 | E65: Mar | F65: 2022-23 | G65: 2023-03-10 | H65: INV-SF-000066 | I65: SO-00061 | J65: DSR WOODWINDS APARTMENT OWNERS ASSOCIATION | K65: HK | L65: B2B | M65: 20294 | N65: 19553 | O65: 0 | P65: =(Invoice[[#This Row],[bcy_total]]-Invoice[[#This Row],[COGS ]]-Invoice[[#This Row],[Logistics]]) -> 741 | Q65: =(_xlfn.PERCENTOF(Invoice[[#This Row],[Gross Profit ]],Invoice[[#This Row],[bcy_total]])) -> 0.03651325515
A66: 976748000001793073 | B66: paid | C66: 2023-03-10 | D66: =YEAR(C66) -> 2023 | E66: =TEXT(C66,"mmm") -> Mar | F66: 2022-23 | G66: 2023-03-10 | H66: INV-SF-000067 | J66: PRESTIGE FERNS RESIDENCY APARTMENT OWNERS ASSOCIATION | K66: Hk | L66: B2B | M66: 61808 | N66: =(47759+12339) -> 60098 | O66: 0 | P66: =(Invoice[[#This Row],[bcy_total]]-Invoice[[#This Row],[COGS ]]-Invoice[[#This Row],[Logistics]]) -> 1710 | Q66: =(_xlfn.PERCENTOF(Invoice[[#This Row],[Gross Profit ]],Invoice[[#This Row],[bcy_total]])) -> 0.02766632151
A67: 976748000001793399 | B67: paid | C67: 2023-03-10 | D67: 2023 | E67: Mar | F67: 2022-23 | G67: 2023-03-10 | H67: INV-SF-000068 | J67: PRESTIGE FERNS RESIDENCY APARTMENT OWNERS ASSOCIATION | K67: HK | L67: B2B | M67: 17334 | N67: 11346 | O67: 0 | P67: =(Invoice[[#This Row],[bcy_total]]-Invoice[[#This Row],[COGS ]]-Invoice[[#This Row],[Logistics]]) -> 5988 | Q67: =(_xlfn.PERCENTOF(Invoice[[#This Row],[Gross Profit ]],Invoice[[#This Row],[bcy_total]])) -> 0.345448252
A68: 976748000001793945 | B68: paid | C68: 2023-03-10 | D68: 2023 | E68: Mar | F68: 2022-23 | G68: 2023-03-10 | H68: INV-SF-000069 | I68: SO-00063 | J68: MANTRI TRANQUIL APARTMENT OWNERS ASSOCIATION | K68: Plumbing | L68: B2B | M68: 10083 | N68: =9578 -> 9578 | O68: =(M68*1%) -> 100.83 | P68: =(Invoice[[#This Row],[bcy_total]]-Invoice[[#This Row],[COGS ]]-Invoice[[#This Row],[Logistics]]) -> 404.17 | Q68: =(_xlfn.PERCENTOF(Invoice[[#This Row],[Gross Profit ]],Invoice[[#This Row],[bcy_total]])) -> 0.04008430031
A69: 976748000001813001 | B69: paid | C69: 2023-03-11 | D69: 2023 | E69: Mar | F69: 2022-23 | G69: 2023-03-11 | H69: INV-SF-000070 | J69: Hm Vibha Tower | K69: Safety | L69: B2B | M69: 1194 | N69: 880 | O69: 270 | P69: =(Invoice[[#This Row],[bcy_total]]-Invoice[[#This Row],[COGS ]]-Invoice[[#This Row],[Logistics]]) -> 44 | Q69: =(_xlfn.PERCENTOF(Invoice[[#This Row],[Gross Profit ]],Invoice[[#This Row],[bcy_total]])) -> 0.03685092127
A70: 976748000001853069 | B70: paid | C70: 2023-03-15 | D70: 2023 | E70: Mar | F70: 2022-23 | G70: 2023-03-30 | H70: INV-SF-000071 | J70: SNN Raj Greenbay Apartment Owners Association | K70: E | L70: B2B | M70: 26140 | N70: 23364 | O70: =(M70*1%) -> 261.4 | P70: =(Invoice[[#This Row],[bcy_total]]-Invoice[[#This Row],[COGS ]]-Invoice[[#This Row],[Logistics]]) -> 2514.6 | Q70: =(_xlfn.PERCENTOF(Invoice[[#This Row],[Gross Profit ]],Invoice[[#This Row],[bcy_total]])) -> 0.09619739862
A71: 976748000001885001 | B71: paid | C71: 2023-03-16 | D71: 2023 | E71: Mar | F71: 2022-23 | G71: 2023-03-16 | H71: INV-SF-000072 | J71: MANTRI TRANQUIL APARTMENT OWNERS ASSOCIATION | K71: Plumbing | L71: B2B | M71: 3762 | N71: 3564 | O71: 180 | P71: =(Invoice[[#This Row],[bcy_total]]-Invoice[[#This Row],[COGS ]]-Invoice[[#This Row],[Logistics]]) -> 18 | Q71: =(_xlfn.PERCENTOF(Invoice[[#This Row],[Gross Profit ]],Invoice[[#This Row],[bcy_total]])) -> 0.004784688995
A72: 976748000001872003 | B72: paid | C72: 2023-03-16 | D72: 2023 | E72: Mar | F72: 2022-23 | G72: 2023-03-16 | H72: INV-SF-000073 | J72: MANTRI TRANQUIL APARTMENT OWNERS ASSOCIATION | K72: Plumbing | L72: B2B | M72: 3329 | N72: 2289 | O72: 180 | P72: =(Invoice[[#This Row],[bcy_total]]-Invoice[[#This Row],[COGS ]]-Invoice[[#This Row],[Logistics]]) -> 860 | Q72: =(_xlfn.PERCENTOF(Invoice[[#This Row],[Gross Profit ]],Invoice[[#This Row],[bcy_total]])) -> 0.2583358366
A73: 976748000001930001 | B73: paid | C73: 2023-03-18 | D73: 2023 | E73: Mar | F73: 2022-23 | G73: 2023-04-02 | H73: INV-SF-000074 | J73: SNN Raj Greenbay Apartment Owners Association | K73: BU | L73: B2B | M73: 51024 | N73: 48000 | O73: =(M73*1%) -> 510.24 | P73: =(Invoice[[#This Row],[bcy_total]]-Invoice[[#This Row],[COGS ]]-Invoice[[#This Row],[Logistics]]) -> 2513.76 | Q73: =(_xlfn.PERCENTOF(Invoice[[#This Row],[Gross Profit ]],Invoice[[#This Row],[bcy_total]])) -> 0.04926622766
A74: 976748000001935001 | B74: overdue | C74: 2023-03-18 | D74: 2023 | E74: Mar | F74: 2022-23 | G74: 2023-03-18 | H74: INV-SF-000075 | J74: CGK Water Solutions | K74: Pool | L74: B2B | M74: 21390 | N74: =(12906+2832) -> 15738 | O74: 0 | P74: =(Invoice[[#This Row],[bcy_total]]-Invoice[[#This Row],[COGS ]]-Invoice[[#This Row],[Logistics]]) -> 5652 | Q74: =(_xlfn.PERCENTOF(Invoice[[#This Row],[Gross Profit ]],Invoice[[#This Row],[bcy_total]])) -> 0.2642356241
A75: 976748000001965001 | B75: paid | C75: 2023-03-22 | D75: 2023 | E75: Mar | F75: 2022-23 | G75: 2023-03-22 | H75: INV-SF-000076 | J75: PRESTIGE FERNS RESIDENCY APARTMENT OWNERS ASSOCIATION | K75: BU | L75: B2B | M75: 72098 | N75: 51500 | O75: 4000 | P75: =(Invoice[[#This Row],[bcy_total]]-Invoice[[#This Row],[COGS ]]-Invoice[[#This Row],[Logistics]]) -> 16598 | Q75: =(_xlfn.PERCENTOF(Invoice[[#This Row],[Gross Profit ]],Invoice[[#This Row],[bcy_total]])) -> 0.2302144304
A76: 976748000001993009 | B76: paid | C76: 2023-03-24 | D76: 2023 | E76: Mar | F76: 2022-23 | G76: 2023-03-24 | H76: INV-SF-000077 | J76: Sumadhura Silver Ripples | K76: Plumbing | L76: B2B | M76: 5329 | N76: 4976 | O76: 180 | P76: =(Invoice[[#This Row],[bcy_total]]-Invoice[[#This Row],[COGS ]]-Invoice[[#This Row],[Logistics]]) -> 173 | Q76: =(_xlfn.PERCENTOF(Invoice[[#This Row],[Gross Profit ]],Invoice[[#This Row],[bcy_total]])) -> 0.0324638769
A77: 976748000002000009 | B77: paid | C77: 2023-03-24 | D77: 2023 | E77: Mar | F77: 2022-23 | G77: 2023-03-24 | H77: INV-SF-000078 | J77: MANTRI TRANQUIL APARTMENT OWNERS ASSOCIATION | K77: Pool | L77: B2B | M77: 21240 | N77: 16992 | O77: 0 | P77: =(Invoice[[#This Row],[bcy_total]]-Invoice[[#This Row],[COGS ]]-Invoice[[#This Row],[Logistics]]) -> 4248 | Q77: =(_xlfn.PERCENTOF(Invoice[[#This Row],[Gross Profit ]],Invoice[[#This Row],[bcy_total]])) -> 0.2
A78: 976748000002025001 | B78: paid | C78: 2023-03-27 | D78: 2023 | E78: Mar | F78: 2022-23 | G78: 2023-03-27 | H78: INV-SF-000079 | J78: CGK Water Solutions | K78: Machine | L78: B2B | M78: 84960 | N78: 64664 | O78: =(M78*1%) -> 849.6 | P78: =(Invoice[[#This Row],[bcy_total]]-Invoice[[#This Row],[COGS ]]-Invoice[[#This Row],[Logistics]]) -> 19446.4 | Q78: =(_xlfn.PERCENTOF(Invoice[[#This Row],[Gross Profit ]],Invoice[[#This Row],[bcy_total]])) -> 0.2288888889
A79: 976748000001068940 | B79: paid | C79: 2023-01-31 | D79: 2023 | E79: Jan | F79: 2022-23 | G79: 2023-01-31 | H79: INV-SF-00008 | J79: CASA PARADISO 2 SUBCOMMITTEE | K79: BU | L79: B2B | M79: 566 | N79: 566 | O79: 80 | P79: =(Invoice[[#This Row],[bcy_total]]-Invoice[[#This Row],[COGS ]]-Invoice[[#This Row],[Logistics]]) -> -80 | Q79: =(_xlfn.PERCENTOF(Invoice[[#This Row],[Gross Profit ]],Invoice[[#This Row],[bcy_total]])) -> -0.1413427562
A80: 976748000002048001 | B80: paid | C80: 2023-03-28 | D80: 2023 | E80: Mar | F80: 2022-23 | G80: 2023-03-28 | H80: INV-SF-000080 | J80: MANTRI TRANQUIL APARTMENT OWNERS ASSOCIATION | K80: Pump | L80: B2B | M80: 81413 | N80: 78300 | O80: =(M80*1%) -> 814.13 | P80: =(Invoice[[#This Row],[bcy_total]]-Invoice[[#This Row],[COGS ]]-Invoice[[#This Row],[Logistics]]) -> 2298.87 | Q80: =(_xlfn.PERCENTOF(Invoice[[#This Row],[Gross Profit ]],Invoice[[#This Row],[bcy_total]])) -> 0.02823713658
A81: 976748000002161085 | B81: paid | C81: 2023-03-31 | D81: 2023 | E81: Mar | F81: 2022-23 | G81: 2023-03-31 | H81: INV-SF-000081 | J81: Teja Environ Services | K81: Pool | L81: B2B | M81: 4956 | N81: 4248 | O81: 0 | P81: =(Invoice[[#This Row],[bcy_total]]-Invoice[[#This Row],[COGS ]]-Invoice[[#This Row],[Logistics]]) -> 708 | Q81: =(_xlfn.PERCENTOF(Invoice[[#This Row],[Gross Profit ]],Invoice[[#This Row],[bcy_total]])) -> 0.1428571429
A82: 976748000002245001 | B82: paid | C82: 2023-04-05 | D82: 2023 | E82: Apr | F82: 2023-24 | G82: 2023-04-05 | H82: INV-SF-000082 | J82: PRESTIGE FERNS RESIDENCY APARTMENT OWNERS ASSOCIATION | K82: Safety | L82: B2B | M82: 13670 | N82: 9440 | O82: 400 | P82: =(Invoice[[#This Row],[bcy_total]]-Invoice[[#This Row],[COGS ]]-Invoice[[#This Row],[Logistics]]) -> 3830 | Q82: =(_xlfn.PERCENTOF(Invoice[[#This Row],[Gross Profit ]],Invoice[[#This Row],[bcy_total]])) -> 0.2801755669
A83: 976748000002270013 | B83: paid | C83: 2023-04-06 | D83: 2023 | E83: Apr | F83: 2023-24 | G83: 2023-04-06 | H83: INV-SF-000083 | J83: CLOMOSO TECHNOLOGIES PRIVATE LIMITED | K83: Hardware | L83: B2B | M83: 28894 | N83: =(10641+1433) -> 12074 | O83: 280 | P83: =(Invoice[[#This Row],[bcy_total]]-Invoice[[#This Row],[COGS ]]-Invoice[[#This Row],[Logistics]]) -> 16540 | Q83: =(_xlfn.PERCENTOF(Invoice[[#This Row],[Gross Profit ]],Invoice[[#This Row],[bcy_total]])) -> 0.5724371842
A84: 976748000002270114 | B84: paid | C84: 2023-04-06 | D84: 2023 | E84: Apr | F84: 2023-24 | G84: 2023-04-06 | H84: INV-SF-000084 | J84: SNN RAJ ETTERNIA APARTMENT OWNERS ASSOCIATION | K84: Pool | L84: B2B | M84: 40060 | N84: 32639 | O84: 580 | P84: =(Invoice[[#This Row],[bcy_total]]-Invoice[[#This Row],[COGS ]]-Invoice[[#This Row],[Logistics]]) -> 6841 | Q84: =(_xlfn.PERCENTOF(Invoice[[#This Row],[Gross Profit ]],Invoice[[#This Row],[bcy_total]])) -> 0.1707688467
A85: 976748000002295063 | B85: overdue | C85: 2023-04-08 | D85: 2023 | E85: Apr | F85: 2023-24 | G85: 2023-04-08 | H85: INV-SF-000085 | J85: CLOMOSO TECHNOLOGIES PRIVATE LIMITED | K85: BU | L85: B2B | M85: 760 | N85: 620 | O85: 120 | P85: =(Invoice[[#This Row],[bcy_total]]-Invoice[[#This Row],[COGS ]]-Invoice[[#This Row],[Logistics]]) -> 20 | Q85: =(_xlfn.PERCENTOF(Invoice[[#This Row],[Gross Profit ]],Invoice[[#This Row],[bcy_total]])) -> 0.02631578947
A86: 976748000002288178 | B86: paid | C86: 2023-04-10 | D86: 2023 | E86: Apr | F86: 2023-24 | G86: 2023-04-10 | H86: INV-SF-000086 | J86: DSR WOODWINDS APARTMENT OWNERS ASSOCIATION | K86: BU | L86: B2B | M86: 4887 | N86: 3800 | O86: 600 | P86: =(Invoice[[#This Row],[bcy_total]]-Invoice[[#This Row],[COGS ]]-Invoice[[#This Row],[Logistics]]) -> 487 | Q86: =(_xlfn.PERCENTOF(Invoice[[#This Row],[Gross Profit ]],Invoice[[#This Row],[bcy_total]])) -> 0.09965213833
A87: 976748000002353065 | B87: paid | C87: 2023-04-13 | D87: 2023 | E87: Apr | F87: 2023-24 | G87: 2023-04-13 | H87: INV-SF-000087 | I87: SO-00070 | J87: PRESTIGE FERNS RESIDENCY APARTMENT OWNERS ASSOCIATION | K87: Electronics | L87: B2B | M87: 5541 | N87: 5222 | O87: 230 | P87: =(Invoice[[#This Row],[bcy_total]]-Invoice[[#This Row],[COGS ]]-Invoice[[#This Row],[Logistics]]) -> 89 | Q87: =(_xlfn.PERCENTOF(Invoice[[#This Row],[Gross Profit ]],Invoice[[#This Row],[bcy_total]])) -> 0.01606208266
A88: 976748000002353145 | B88: paid | C88: 2023-04-13 | D88: 2023 | E88: Apr | F88: 2023-24 | G88: 2023-04-13 | H88: INV-SF-000088 | I88: SO-00071 | J88: Jagannath Samal | K88: Plumbing | L88: B2C | M88: 1360 | N88: 760 | O88: 450 | P88: =(Invoice[[#This Row],[bcy_total]]-Invoice[[#This Row],[COGS ]]-Invoice[[#This Row],[Logistics]]) -> 150 | Q88: =(_xlfn.PERCENTOF(Invoice[[#This Row],[Gross Profit ]],Invoice[[#This Row],[bcy_total]])) -> 0.1102941176
A89: 976748000002384019 | B89: overdue | C89: 2023-04-15 | D89: 2023 | E89: Apr | F89: 2023-24 | G89: 2023-04-15 | H89: INV-SF-000089 | I89: SO-00072 | J89: Dhanaji Phadtare | K89: Plumbing | L89: B2C | M89: 810 | N89: 410 | O89: 380 | P89: =(Invoice[[#This Row],[bcy_total]]-Invoice[[#This Row],[COGS ]]-Invoice[[#This Row],[Logistics]]) -> 20 | Q89: =(_xlfn.PERCENTOF(Invoice[[#This Row],[Gross Profit ]],Invoice[[#This Row],[bcy_total]])) -> 0.02469135802
A90: 976748000002413001 | B90: paid | C90: 2023-04-17 | D90: 2023 | E90: Apr | F90: 2023-24 | G90: 2023-04-17 | H90: INV-SF-000090 | J90: Shivkumar | K90: Plumbing | L90: B2C | M90: 3600 | N90: 1800 | O90: =(Invoice[[#This Row],[COGS ]]*0.3) -> 540 | P90: =(Invoice[[#This Row],[bcy_total]]-Invoice[[#This Row],[COGS ]]-Invoice[[#This Row],[Logistics]]) -> 1260 | Q90: =(_xlfn.PERCENTOF(Invoice[[#This Row],[Gross Profit ]],Invoice[[#This Row],[bcy_total]])) -> 0.35
A91: 976748000002408017 | B91: overdue | C91: 2023-04-17 | D91: 2023 | E91: Apr | F91: 2023-24 | G91: 2023-04-17 | H91: INV-SF-000091 | I91: SO-00073 | J91: mosin ali | K91: Plumbing | L91: B2C | M91: 8527 | N91: 2686 | O91: 2500 | P91: =(Invoice[[#This Row],[bcy_total]]-Invoice[[#This Row],[COGS ]]-Invoice[[#This Row],[Logistics]]) -> 3341 | Q91: =(_xlfn.PERCENTOF(Invoice[[#This Row],[Gross Profit ]],Invoice[[#This Row],[bcy_total]])) -> 0.3918142371
A92: 976748000002435001 | B92: paid | C92: 2023-04-18 | D92: 2023 | E92: Apr | F92: 2023-24 | G92: 2023-04-18 | H92: INV-SF-000092 | J92: PRESTIGE FERNS RESIDENCY APARTMENT OWNERS ASSOCIATION | K92: BU | L92: B2B | M92: 15930 | N92: 10045 | O92: 890 | P92: =(Invoice[[#This Row],[bcy_total]]-Invoice[[#This Row],[COGS ]]-Invoice[[#This Row],[Logistics]]) -> 4995 | Q92: =(_xlfn.PERCENTOF(Invoice[[#This Row],[Gross Profit ]],Invoice[[#This Row],[bcy_total]])) -> 0.313559322
A93: 976748000002435133 | B93: paid | C93: 2023-04-18 | D93: 2023 | E93: Apr | F93: 2023-24 | G93: 2023-04-18 | H93: INV-SF-000093 | J93: PRESTIGE FERNS RESIDENCY APARTMENT OWNERS ASSOCIATION | K93: Hardware | L93: B2B | M93: 17672 | N93: 16202 | O93: 199 | P93: =(Invoice[[#This Row],[bcy_total]]-Invoice[[#This Row],[COGS ]]-Invoice[[#This Row],[Logistics]]) -> 1271 | Q93: =(_xlfn.PERCENTOF(Invoice[[#This Row],[Gross Profit ]],Invoice[[#This Row],[bcy_total]])) -> 0.07192168402
A94: 976748000002437022 | B94: paid | C94: 2023-04-18 | D94: 2023 | E94: Apr | F94: 2023-24 | G94: 2023-04-18 | H94: INV-SF-000094 | J94: BELEGERE GROUP SERVICES | K94: Pool | L94: B2B | M94: 12803 | N94: 11729 | O94: 0 | P94: =(Invoice[[#This Row],[bcy_total]]-Invoice[[#This Row],[COGS ]]-Invoice[[#This Row],[Logistics]]) -> 1074 | Q94: =(_xlfn.PERCENTOF(Invoice[[#This Row],[Gross Profit ]],Invoice[[#This Row],[bcy_total]])) -> 0.08388658908
A95: 976748000002461003 | B95: paid | C95: 2023-04-18 | D95: 2023 | E95: Apr | F95: 2023-24 | G95: 2023-04-18 | H95: INV-SF-000095 | J95: BELEGERE GROUP SERVICES | K95: Pool | L95: B2B | M95: 1982 | N95: 1699 | O95: 0 | P95: =(Invoice[[#This Row],[bcy_total]]-Invoice[[#This Row],[COGS ]]-Invoice[[#This Row],[Logistics]]) -> 283 | Q95: =(_xlfn.PERCENTOF(Invoice[[#This Row],[Gross Profit ]],Invoice[[#This Row],[bcy_total]])) -> 0.1427850656
A96: 976748000002473247 | B96: overdue | C96: 2023-04-19 | D96: 2023 | E96: Apr | F96: 2023-24 | G96: 2023-04-19 | H96: INV-SF-000097 | I96: SO-00074 | J96: Vijay Prakash | K96: Plumbing | L96: B2C | M96: 3872 | N96: 1936 | O96: =(Invoice[[#This Row],[COGS ]]*0.3) -> 580.8 | P96: =(Invoice[[#This Row],[bcy_total]]-Invoice[[#This Row],[COGS ]]-Invoice[[#This Row],[Logistics]]) -> 1355.2 | Q96: =(_xlfn.PERCENTOF(Invoice[[#This Row],[Gross Profit ]],Invoice[[#This Row],[bcy_total]])) -> 0.35
A97: 976748000002476016 | B97: paid | C97: 2023-04-20 | D97: 2023 | E97: Apr | F97: 2023-24 | G97: 2023-04-20 | H97: INV-SF-000098 | I97: SO-00075 | J97: Rittika Sachdeva | K97: HK | L97: B2C | M97: 1478 | N97: 2099 | O97: 870 | P97: =(Invoice[[#This Row],[bcy_total]]-Invoice[[#This Row],[COGS ]]-Invoice[[#This Row],[Logistics]]) -> -1491 | Q97: =(_xlfn.PERCENTOF(Invoice[[#This Row],[Gross Profit ]],Invoice[[#This Row],[bcy_total]])) -> -1.00879567
A98: 976748000002438173 | B98: paid | C98: 2023-04-20 | D98: 2023 | E98: Apr | F98: 2023-24 | G98: 2023-04-20 | H98: INV-SF-000099 | J98: PRESTIGE FERNS RESIDENCY APARTMENT OWNERS ASSOCIATION | K98: BU | L98: B2B | M98: 108450 | N98: 68000 | O98: 6000 | P98: =(Invoice[[#This Row],[bcy_total]]-Invoice[[#This Row],[COGS ]]-Invoice[[#This Row],[Logistics]]) -> 34450 | Q98: =(_xlfn.PERCENTOF(Invoice[[#This Row],[Gross Profit ]],Invoice[[#This Row],[bcy_total]])) -> 0.3176579069
A99: 976748000002438195 | B99: paid | C99: 2023-04-20 | D99: 2023 | E99: Apr | F99: 2023-24 | G99: 2023-04-20 | H99: INV-SF-000100 | J99: PRESTIGE FERNS RESIDENCY APARTMENT OWNERS ASSOCIATION | K99: BU | L99: B2B | M99: 108450 | N99: 69000 | O99: 9000 | P99: =(Invoice[[#This Row],[bcy_total]]-Invoice[[#This Row],[COGS ]]-Invoice[[#This Row],[Logistics]]) -> 30450 | Q99: =(_xlfn.PERCENTOF(Invoice[[#This Row],[Gross Profit ]],Invoice[[#This Row],[bcy_total]])) -> 0.2807745505
A100: 976748000002470013 | B100: paid | C100: 2023-04-21 | D100: 2023 | E100: Apr | F100: 2023-24 | G100: 2023-04-21 | H100: INV-SF-000101 | J100: PRESTIGE FERNS RESIDENCY APARTMENT OWNERS ASSOCIATION | K100: Safety | L100: B2B | M100: 20812 | N100: 16225 | O100: 1120 | P100: =(Invoice[[#This Row],[bcy_total]]-Invoice[[#This Row],[COGS ]]-Invoice[[#This Row],[Logistics]]) -> 3467 | Q100: =(_xlfn.PERCENTOF(Invoice[[#This Row],[Gross Profit ]],Invoice[[#This Row],[bcy_total]])) -> 0.1665865847
A101: 976748000002476078 | B101: paid | C101: 2023-04-21 | D101: 2023 | E101: Apr | F101: 2023-24 | G101: 2023-04-21 | H101: INV-SF-000102 | I101: SO-00076 | J101: Selvaraj Ramasamy | K101: Plumbing | L101: B2C | M101: 379 | N101: 137 | O101: 270 | P101: =(Invoice[[#This Row],[bcy_total]]-Invoice[[#This Row],[COGS ]]-Invoice[[#This Row],[Logistics]]) -> -28 | Q101: =(_xlfn.PERCENTOF(Invoice[[#This Row],[Gross Profit ]],Invoice[[#This Row],[bcy_total]])) -> -0.07387862797
A102: 976748000002440035 | B102: paid | C102: 2023-04-21 | D102: 2023 | E102: Apr | F102: 2023-24 | G102: 2023-04-21 | H102: INV-SF-000103 | J102: PRESTIGE FERNS RESIDENCY APARTMENT OWNERS ASSOCIATION | K102: Hardware | L102: B2B | M102: 5810 | N102: 4990 | O102: 180 | P102: =(Invoice[[#This Row],[bcy_total]]-Invoice[[#This Row],[COGS ]]-Invoice[[#This Row],[Logistics]]) -> 640 | Q102: =(_xlfn.PERCENTOF(Invoice[[#This Row],[Gross Profit ]],Invoice[[#This Row],[bcy_total]])) -> 0.1101549053
A103: 976748000002469044 | B103: paid | C103: 2023-04-21 | D103: 2023 | E103: Apr | F103: 2023-24 | G103: 2023-04-21 | H103: INV-SF-000104 | J103: PRESTIGE FERNS RESIDENCY APARTMENT OWNERS ASSOCIATION | K103: E | L103: B2B | M103: 9168 | N103: 7766 | O103: 280 | P103: =(Invoice[[#This Row],[bcy_total]]-Invoice[[#This Row],[COGS ]]-Invoice[[#This Row],[Logistics]]) -> 1122 | Q103: =(_xlfn.PERCENTOF(Invoice[[#This Row],[Gross Profit ]],Invoice[[#This Row],[bcy_total]])) -> 0.122382199
A104: 976748000002509013 | B104: overdue | C104: 2023-04-24 | D104: 2023 | E104: Apr | F104: 2023-24 | G104: 2023-04-24 | H104: INV-SF-000105 | I104: SO-00077 | J104: Jitendra Kumar | K104: Plumbing | L104: B2C | M104: 858 | N104: 420 | O104: 380 | P104: =(Invoice[[#This Row],[bcy_total]]-Invoice[[#This Row],[COGS ]]-Invoice[[#This Row],[Logistics]]) -> 58 | Q104: =(_xlfn.PERCENTOF(Invoice[[#This Row],[Gross Profit ]],Invoice[[#This Row],[bcy_total]])) -> 0.0675990676
A105: 976748000002563007 | B105: paid | C105: 2023-04-25 | D105: 2023 | E105: Apr | F105: 2023-24 | G105: 2023-04-25 | H105: INV-SF-000106 | J105: ENCARE SOLUTIONS & SERVICES | K105: Media | L105: B2B | M105: 171412 | N105: 140000 | O105: 6000 | P105: =(Invoice[[#This Row],[bcy_total]]-Invoice[[#This Row],[COGS ]]-Invoice[[#This Row],[Logistics]]) -> 25412 | Q105: =(_xlfn.PERCENTOF(Invoice[[#This Row],[Gross Profit ]],Invoice[[#This Row],[bcy_total]])) -> 0.1482509976
A106: 976748000002605001 | B106: paid | C106: 2023-04-26 | D106: 2023 | E106: Apr | F106: 2023-24 | G106: 2023-05-11 | H106: INV-SF-000107 | J106: SNN Raj Greenbay Apartment Owners Association | K106: E | L106: B2B | M106: 19060 | N106: 19200 | O106: 380 | P106: =(Invoice[[#This Row],[bcy_total]]-Invoice[[#This Row],[COGS ]]-Invoice[[#This Row],[Logistics]]) -> -520 | Q106: =(_xlfn.PERCENTOF(Invoice[[#This Row],[Gross Profit ]],Invoice[[#This Row],[bcy_total]])) -> -0.02728226653
A107: 976748000002608009 | B107: paid | C107: 2023-04-26 | D107: 2023 | E107: Apr | F107: 2023-24 | G107: 2023-04-26 | H107: INV-SF-000108 | J107: PRESTIGE FERNS RESIDENCY APARTMENT OWNERS ASSOCIATION | K107: BU | L107: B2B | M107: 6726 | N107: 4800 | O107: 480 | P107: =(Invoice[[#This Row],[bcy_total]]-Invoice[[#This Row],[COGS ]]-Invoice[[#This Row],[Logistics]]) -> 1446 | Q107: =(_xlfn.PERCENTOF(Invoice[[#This Row],[Gross Profit ]],Invoice[[#This Row],[bcy_total]])) -> 0.2149866191
A108: 976748000002608079 | B108: paid | C108: 2023-04-26 | D108: 2023 | E108: Apr | F108: 2023-24 | G108: 2023-04-26 | H108: INV-SF-000109 | J108: PRESTIGE FERNS RESIDENCY APARTMENT OWNERS ASSOCIATION | K108: BU | L108: B2B | M108: 13452 | N108: 12100 | O108: 1200 | P108: =(Invoice[[#This Row],[bcy_total]]-Invoice[[#This Row],[COGS ]]-Invoice[[#This Row],[Logistics]]) -> 152 | Q108: =(_xlfn.PERCENTOF(Invoice[[#This Row],[Gross Profit ]],Invoice[[#This Row],[bcy_total]])) -> 0.01129943503
A109: 976748000002638001 | B109: paid | C109: 2023-04-27 | D109: 2023 | E109: Apr | F109: 2023-24 | G109: 2023-04-27 | H109: INV-SF-000110 | J109: Sumadhura Silver Ripples | K109: Plumbing | L109: B2B | M109: 9708 | N109: 12845 | O109: 0 | P109: =(Invoice[[#This Row],[bcy_total]]-Invoice[[#This Row],[COGS ]]-Invoice[[#This Row],[Logistics]]) -> -3137 | Q109: =(_xlfn.PERCENTOF(Invoice[[#This Row],[Gross Profit ]],Invoice[[#This Row],[bcy_total]])) -> -0.3231355583
A110: 976748000002639049 | B110: paid | C110: 2023-04-27 | D110: 2023 | E110: Apr | F110: 2023-24 | G110: 2023-04-27 | H110: INV-SF-000111 | J110: Nandhakumar Manjini | K110: HK | L110: B2B | M110: 2030 | N110: 1800 | O110: 780 | P110: =(Invoice[[#This Row],[bcy_total]]-Invoice[[#This Row],[COGS ]]-Invoice[[#This Row],[Logistics]]) -> -550 | Q110: =(_xlfn.PERCENTOF(Invoice[[#This Row],[Gross Profit ]],Invoice[[#This Row],[bcy_total]])) -> -0.2709359606
A111: 976748000002641001 | B111: paid | C111: 2023-04-27 | D111: 2023 | E111: Apr | F111: 2023-24 | G111: 2023-05-04 | H111: INV-SF-000112 | I111: SO-00002 | J111: SNN Raj Greenbay Apartment Owners Association | K111: E | L111: B2B | M111: 3306 | N111: 9296 | O111: 420 | P111: =(Invoice[[#This Row],[bcy_total]]-Invoice[[#This Row],[COGS ]]-Invoice[[#This Row],[Logistics]]) -> -6410 | Q111: =(_xlfn.PERCENTOF(Invoice[[#This Row],[Gross Profit ]],Invoice[[#This Row],[bcy_total]])) -> -1.938898972
A112: 976748000002642001 | B112: paid | C112: 2023-04-27 | D112: 2023 | E112: Apr | F112: 2023-24 | G112: 2023-04-27 | H112: INV-SF-000113 | J112: PRESTIGE FERNS RESIDENCY APARTMENT OWNERS ASSOCIATION | K112: Hardware | L112: B2B | M112: 8149 | N112: 7450 | O112: 270 | P112: =(Invoice[[#This Row],[bcy_total]]-Invoice[[#This Row],[COGS ]]-Invoice[[#This Row],[Logistics]]) -> 429 | Q112: =(_xlfn.PERCENTOF(Invoice[[#This Row],[Gross Profit ]],Invoice[[#This Row],[bcy_total]])) -> 0.05264449626
A113: 976748000002779013 | B113: overdue | C113: 2023-05-01 | D113: 2023 | E113: May | F113: 2023-24 | G113: 2023-05-01 | H113: INV-SF-000114 | I113: SO-00080 | J113: Shailender Arya | K113: HK | L113: B2B | M113: 2107 | N113: 1980 | O113: 15 | P113: =(Invoice[[#This Row],[bcy_total]]-Invoice[[#This Row],[COGS ]]-Invoice[[#This Row],[Logistics]]) -> 112 | Q113: =(_xlfn.PERCENTOF(Invoice[[#This Row],[Gross Profit ]],Invoice[[#This Row],[bcy_total]])) -> 0.05315614618
A114: 976748000002773043 | B114: paid | C114: 2023-05-02 | D114: 2023 | E114: May | F114: 2023-24 | G114: 2023-05-02 | H114: INV-SF-000115 | J114: PRESTIGE FERNS RESIDENCY APARTMENT OWNERS ASSOCIATION | K114: E | L114: B2B | M114: 89594 | N114: =(59189+16100) -> 75289 | O114: 580 | P114: =(Invoice[[#This Row],[bcy_total]]-Invoice[[#This Row],[COGS ]]-Invoice[[#This Row],[Logistics]]) -> 13725 | Q114: =(_xlfn.PERCENTOF(Invoice[[#This Row],[Gross Profit ]],Invoice[[#This Row],[bcy_total]])) -> 0.1531910619
A115: 976748000002776007 | B115: paid | C115: 2023-05-02 | D115: 2023 | E115: May | F115: 2023-24 | G115: 2023-05-02 | H115: INV-SF-000116 | J115: MANTRI TRANQUIL APARTMENT OWNERS ASSOCIATION | K115: Pool | L115: B2B | M115: 21240 | N115: 16992 | O115: 0 | P115: =(Invoice[[#This Row],[bcy_total]]-Invoice[[#This Row],[COGS ]]-Invoice[[#This Row],[Logistics]]) -> 4248 | Q115: =(_xlfn.PERCENTOF(Invoice[[#This Row],[Gross Profit ]],Invoice[[#This Row],[bcy_total]])) -> 0.2
A116: 976748000002798001 | B116: paid | C116: 2023-05-03 | D116: 2023 | E116: May | F116: 2023-24 | G116: 2023-05-03 | H116: INV-SF-000117 | J116: SNN RAJ ETTERNIA APARTMENT OWNERS ASSOCIATION | K116: Pool | L116: B2B | M116: 40374 | N116: 34687 | O116: 0 | P116: =(Invoice[[#This Row],[bcy_total]]-Invoice[[#This Row],[COGS ]]-Invoice[[#This Row],[Logistics]]) -> 5687 | Q116: =(_xlfn.PERCENTOF(Invoice[[#This Row],[Gross Profit ]],Invoice[[#This Row],[bcy_total]])) -> 0.1408579779
A117: 976748000002824114 | B117: overdue | C117: 2023-05-04 | D117: 2023 | E117: May | F117: 2023-24 | G117: 2023-05-04 | H117: INV-SF-000118 | I117: SO-00081 | J117: Sucharita Lal | K117: Plumbing | L117: B2C | M117: 463 | N117: 280 | O117: =(Invoice[[#This Row],[COGS ]]*0.3) -> 84 | P117: =(Invoice[[#This Row],[bcy_total]]-Invoice[[#This Row],[COGS ]]-Invoice[[#This Row],[Logistics]]) -> 99 | Q117: =(_xlfn.PERCENTOF(Invoice[[#This Row],[Gross Profit ]],Invoice[[#This Row],[bcy_total]])) -> 0.2138228942
A118: 976748000002824180 | B118: paid | C118: 2023-05-04 | D118: 2023 | E118: May | F118: 2023-24 | G118: 2023-05-04 | H118: INV-SF-000119 | I118: SO-00083 | J118: SENTHIL KUMAR | K118: Plumbing | L118: B2C | M118: 384 | N118: 210 | O118: =(Invoice[[#This Row],[COGS ]]*0.3) -> 63 | P118: =(Invoice[[#This Row],[bcy_total]]-Invoice[[#This Row],[COGS ]]-Invoice[[#This Row],[Logistics]]) -> 111 | Q118: =(_xlfn.PERCENTOF(Invoice[[#This Row],[Gross Profit ]],Invoice[[#This Row],[bcy_total]])) -> 0.2890625
A119: 976748000002828131 | B119: paid | C119: 2023-05-05 | D119: 2023 | E119: May | F119: 2023-24 | G119: 2023-05-05 | H119: INV-SF-000121 | I119: SO-00085 | J119: Sabu K c | K119: Plumbing | L119: B2C | M119: 687 | N119: 350 | O119: =(Invoice[[#This Row],[COGS ]]*0.3) -> 105 | P119: =(Invoice[[#This Row],[bcy_total]]-Invoice[[#This Row],[COGS ]]-Invoice[[#This Row],[Logistics]]) -> 232 | Q119: =(_xlfn.PERCENTOF(Invoice[[#This Row],[Gross Profit ]],Invoice[[#This Row],[bcy_total]])) -> 0.3377001456
A120: 976748000002883011 | B120: paid | C120: 2023-05-06 | D120: 2023 | E120: May | F120: 2023-24 | G120: 2023-05-21 | H120: INV-SF-000123 | J120: SNN Raj Greenbay Apartment Owners Association | K120: E | L120: B2B | M120: 27595 | N120: 20500 | O120: 600 | P120: =(Invoice[[#This Row],[bcy_total]]-Invoice[[#This Row],[COGS ]]-Invoice[[#This Row],[Logistics]]) -> 6495 | Q120: =(_xlfn.PERCENTOF(Invoice[[#This Row],[Gross Profit ]],Invoice[[#This Row],[bcy_total]])) -> 0.2353687262
A121: 976748000002883109 | B121: paid | C121: 2023-05-06 | D121: 2023 | E121: May | F121: 2023-24 | G121: 2023-05-06 | H121: INV-SF-000124 | J121: ENCARE SOLUTIONS & SERVICES | K121: Media | L121: B2B | M121: 13555 | N121: 10175 | O121: 0 | P121: =(Invoice[[#This Row],[bcy_total]]-Invoice[[#This Row],[COGS ]]-Invoice[[#This Row],[Logistics]]) -> 3380 | Q121: =(_xlfn.PERCENTOF(Invoice[[#This Row],[Gross Profit ]],Invoice[[#This Row],[bcy_total]])) -> 0.2493544817
A122: 976748000002944014 | B122: paid | C122: 2023-05-10 | D122: 2023 | E122: May | F122: 2023-24 | G122: 2023-05-10 | H122: INV-SF-000125 | I122: SO-00087 | J122: Srinivas KVNDS | K122: Plumbing | L122: B2C | M122: 770 | N122: 498 | O122: =(Invoice[[#This Row],[COGS ]]*0.3) -> 149.4 | P122: =(Invoice[[#This Row],[bcy_total]]-Invoice[[#This Row],[COGS ]]-Invoice[[#This Row],[Logistics]]) -> 122.6 | Q122: =(_xlfn.PERCENTOF(Invoice[[#This Row],[Gross Profit ]],Invoice[[#This Row],[bcy_total]])) -> 0.1592207792
A123: 976748000002972070 | B123: overdue | C123: 2023-05-11 | D123: 2023 | E123: May | F123: 2023-24 | G123: 2023-05-11 | H123: INV-SF-000126 | I123: SO-00088 | J123: Iqbal Singh | K123: Plumbing | L123: B2C | M123: 263 | N123: 80 | O123: =(Invoice[[#This Row],[COGS ]]*0.3) -> 24 | P123: =(Invoice[[#This Row],[bcy_total]]-Invoice[[#This Row],[COGS ]]-Invoice[[#This Row],[Logistics]]) -> 159 | Q123: =(_xlfn.PERCENTOF(Invoice[[#This Row],[Gross Profit ]],Invoice[[#This Row],[bcy_total]])) -> 0.6045627376
A124: 976748000002993003 | B124: paid | C124: 2023-05-16 | D124: 2023 | E124: May | F124: 2023-24 | G124: 2023-05-16 | H124: INV-SF-000127 | J124: PRESTIGE FERNS RESIDENCY APARTMENT OWNERS ASSOCIATION | K124: HK | L124: B2B | M124: 65758 | N124: 54389 | O124: 0 | P124: =(Invoice[[#This Row],[bcy_total]]-Invoice[[#This Row],[COGS ]]-Invoice[[#This Row],[Logistics]]) -> 11369 | Q124: =(_xlfn.PERCENTOF(Invoice[[#This Row],[Gross Profit ]],Invoice[[#This Row],[bcy_total]])) -> 0.1728915113
A125: 976748000003020347 | B125: overdue | C125: 2023-05-17 | D125: 2023 | E125: May | F125: 2023-24 | G125: 2023-05-17 | H125: INV-SF-000128 | I125: SO-00092 | J125: Sachin Suresh | K125: Plumbing | L125: B2C | M125: 855 | N125: 550 | O125: =(Invoice[[#This Row],[COGS ]]*0.3) -> 165 | P125: =(Invoice[[#This Row],[bcy_total]]-Invoice[[#This Row],[COGS ]]-Invoice[[#This Row],[Logistics]]) -> 140 | Q125: =(_xlfn.PERCENTOF(Invoice[[#This Row],[Gross Profit ]],Invoice[[#This Row],[bcy_total]])) -> 0.1637426901
A126: 976748000003020477 | B126: overdue | C126: 2023-05-17 | D126: 2023 | E126: May | F126: 2023-24 | G126: 2023-05-17 | H126: INV-SF-000130 | I126: SO-00089 | J126: Kedar Nath | K126: HK | L126: B2C | M126: 731 | N126: 589 | O126: 150 | P126: =(Invoice[[#This Row],[bcy_total]]-Invoice[[#This Row],[COGS ]]-Invoice[[#This Row],[Logistics]]) -> -8 | Q126: =(_xlfn.PERCENTOF(Invoice[[#This Row],[Gross Profit ]],Invoice[[#This Row],[bcy_total]])) -> -0.01094391245
A127: 976748000002992388 | B127: paid | C127: 2023-05-18 | D127: 2023 | E127: May | F127: 2023-24 | G127: 2023-05-18 | H127: INV-SF-000132 | J127: SOBHA DREAM ACRES RAIN FOREST APARTMENT OWNERS ASSOCIATION | K127: Stationary | L127: B2B | M127: 25465 | N127: 21645 | O127: 450 | P127: =(Invoice[[#This Row],[bcy_total]]-Invoice[[#This Row],[COGS ]]-Invoice[[#This Row],[Logistics]]) -> 3370 | Q127: =(_xlfn.PERCENTOF(Invoice[[#This Row],[Gross Profit ]],Invoice[[#This Row],[bcy_total]])) -> 0.1323385038
A128: 976748000003075554 | B128: overdue | C128: 2023-05-22 | D128: 2023 | E128: May | F128: 2023-24 | G128: 2023-05-22 | H128: INV-SF-000134 | I128: SO-00096 | J128: SHUBHAM PRAKASH | K128: Plumbing | L128: B2C | M128: 1196 | N128: 598 | O128: =(Invoice[[#This Row],[COGS ]]*0.3) -> 179.4 | P128: =(Invoice[[#This Row],[bcy_total]]-Invoice[[#This Row],[COGS ]]-Invoice[[#This Row],[Logistics]]) -> 418.6 | Q128: =(_xlfn.PERCENTOF(Invoice[[#This Row],[Gross Profit ]],Invoice[[#This Row],[bcy_total]])) -> 0.35
A129: 976748000003075672 | B129: paid | C129: 2023-05-22 | D129: 2023 | E129: May | F129: 2023-24 | G129: 2023-05-22 | H129: INV-SF-000135 | I129: SO-00098 | J129: Abhijit Singh | K129: Plumbing | L129: B2C | M129: 304 | N129: 180 | O129: =(Invoice[[#This Row],[COGS ]]*0.3) -> 54 | P129: =(Invoice[[#This Row],[bcy_total]]-Invoice[[#This Row],[COGS ]]-Invoice[[#This Row],[Logistics]]) -> 70 | Q129: =(_xlfn.PERCENTOF(Invoice[[#This Row],[Gross Profit ]],Invoice[[#This Row],[bcy_total]])) -> 0.2302631579
A130: 976748000003075792 | B130: overdue | C130: 2023-05-22 | D130: =YEAR(C130) -> 2023 | E130: =TEXT(C130,"mmm") -> May | F130: 2023-24 | G130: 2023-05-22 | H130: INV-SF-000136 | I130: SO-00095 | J130: mahesh Padwal | K130: Plumbing | L130: B2C | M130: 1167 | N130: 598 | O130: =(Invoice[[#This Row],[COGS ]]*0.3) -> 179.4 | P130: =(Invoice[[#This Row],[bcy_total]]-Invoice[[#This Row],[COGS ]]-Invoice[[#This Row],[Logistics]]) -> 389.6 | Q130: =(_xlfn.PERCENTOF(Invoice[[#This Row],[Gross Profit ]],Invoice[[#This Row],[bcy_total]])) -> 0.3338474722
A131: 976748000003093015 | B131: paid | C131: 2023-05-23 | D131: 2023 | E131: May | F131: 2023-24 | G131: 2023-05-23 | H131: INV-SF-000138 | J131: Srinivas A | K131: HK | L131: B2B | M131: 802 | N131: 990 | O131: 150 | P131: =(Invoice[[#This Row],[bcy_total]]-Invoice[[#This Row],[COGS ]]-Invoice[[#This Row],[Logistics]]) -> -338 | Q131: =(_xlfn.PERCENTOF(Invoice[[#This Row],[Gross Profit ]],Invoice[[#This Row],[bcy_total]])) -> -0.421446384
A132: 976748000003093053 | B132: paid | C132: 2023-05-23 | D132: 2023 | E132: May | F132: 2023-24 | G132: 2023-05-23 | H132: INV-SF-000139 | J132: Srinivas A | K132: HK | L132: B2B | M132: 11631 | N132: 9870 | O132: 660 | P132: =(Invoice[[#This Row],[bcy_total]]-Invoice[[#This Row],[COGS ]]-Invoice[[#This Row],[Logistics]]) -> 1101 | Q132: =(_xlfn.PERCENTOF(Invoice[[#This Row],[Gross Profit ]],Invoice[[#This Row],[bcy_total]])) -> 0.09466082022
A133: 976748000003093131 | B133: paid | C133: 2023-05-23 | D133: 2023 | E133: May | F133: 2023-24 | G133: 2023-05-23 | H133: INV-SF-000140 | J133: PRESTIGE FERNS RESIDENCY APARTMENT OWNERS ASSOCIATION | K133: Hardware | L133: B2B | M133: 59354 | N133: 32851 | O133: 280 | P133: =(Invoice[[#This Row],[bcy_total]]-Invoice[[#This Row],[COGS ]]-Invoice[[#This Row],[Logistics]]) -> 26223 | Q133: =(_xlfn.PERCENTOF(Invoice[[#This Row],[Gross Profit ]],Invoice[[#This Row],[bcy_total]])) -> 0.4418067864
A134: 976748000003096392 | B134: overdue | C134: 2023-05-24 | D134: 2023 | E134: May | F134: 2023-24 | G134: 2023-05-24 | H134: INV-SF-000141 | I134: SO-00099 | J134: Lokesh Patel | K134: Plumbing | L134: B2C | M134: 402 | N134: 210 | O134: =(Invoice[[#This Row],[COGS ]]*0.3) -> 63 | P134: =(Invoice[[#This Row],[bcy_total]]-Invoice[[#This Row],[COGS ]]-Invoice[[#This Row],[Logistics]]) -> 129 | Q134: =(_xlfn.PERCENTOF(Invoice[[#This Row],[Gross Profit ]],Invoice[[#This Row],[bcy_total]])) -> 0.3208955224
A135: 976748000003133013 | B135: overdue | C135: 2023-05-27 | D135: 2023 | E135: May | F135: 2023-24 | G135: 2023-05-27 | H135: INV-SF-000142 | I135: SO-00101 | J135: Naziya Alware | K135: Plumbing | L135: B2C | M135: 2368 | N135: 1184 | O135: =(Invoice[[#This Row],[COGS ]]*0.3) -> 355.2 | P135: =(Invoice[[#This Row],[bcy_total]]-Invoice[[#This Row],[COGS ]]-Invoice[[#This Row],[Logistics]]) -> 828.8 | Q135: =(_xlfn.PERCENTOF(Invoice[[#This Row],[Gross Profit ]],Invoice[[#This Row],[bcy_total]])) -> 0.35
A136: 976748000003133081 | B136: overdue | C136: 2023-05-27 | D136: 2023 | E136: May | F136: 2023-24 | G136: 2023-05-27 | H136: INV-SF-000143 | I136: SO-00100 | J136: Ramkrishnadev Parua | K136: Plumbing | L136: B2C | M136: 1150 | N136: 598 | O136: =(Invoice[[#This Row],[COGS ]]*0.3) -> 179.4 | P136: =(Invoice[[#This Row],[bcy_total]]-Invoice[[#This Row],[COGS ]]-Invoice[[#This Row],[Logistics]]) -> 372.6 | Q136: =(_xlfn.PERCENTOF(Invoice[[#This Row],[Gross Profit ]],Invoice[[#This Row],[bcy_total]])) -> 0.324
A137: 976748000003146059 | B137: paid | C137: 2023-05-28 | D137: 2023 | E137: May | F137: 2023-24 | G137: 2023-05-28 | H137: INV-SF-000144 | J137: Dr Tarun | K137: HK | L137: B2C | M137: 2760 | N137: 2289 | O137: 350 | P137: =(Invoice[[#This Row],[bcy_total]]-Invoice[[#This Row],[COGS ]]-Invoice[[#This Row],[Logistics]]) -> 121 | Q137: =(_xlfn.PERCENTOF(Invoice[[#This Row],[Gross Profit ]],Invoice[[#This Row],[bcy_total]])) -> 0.04384057971
A138: 976748000003146209 | B138: paid | C138: 2023-05-29 | D138: 2023 | E138: May | F138: 2023-24 | G138: 2023-05-29 | H138: INV-SF-000146 | J138: MANTRI TRANQUIL APARTMENT OWNERS ASSOCIATION | K138: E | L138: B2B | M138: 26640 | N138: 25200 | O138: 500 | P138: =(Invoice[[#This Row],[bcy_total]]-Invoice[[#This Row],[COGS ]]-Invoice[[#This Row],[Logistics]]) -> 940 | Q138: =(_xlfn.PERCENTOF(Invoice[[#This Row],[Gross Profit ]],Invoice[[#This Row],[bcy_total]])) -> 0.03528528529
A139: 976748000003146373 | B139: paid | C139: 2023-05-31 | D139: 2023 | E139: May | F139: 2023-24 | G139: 2023-05-31 | H139: INV-SF-000147 | J139: Uniservice Apartment Solutions LLP | K139: BU | L139: B2B | M139: 159040 | N139: 130000 | O139: 780 | P139: =(Invoice[[#This Row],[bcy_total]]-Invoice[[#This Row],[COGS ]]-Invoice[[#This Row],[Logistics]]) -> 28260 | Q139: =(_xlfn.PERCENTOF(Invoice[[#This Row],[Gross Profit ]],Invoice[[#This Row],[bcy_total]])) -> 0.1776911469
A140: 976748000003152009 | B140: paid | C140: 2023-05-31 | D140: 2023 | E140: May | F140: 2023-24 | G140: 2023-06-15 | H140: INV-SF-000148 | J140: SNN Raj Greenbay Apartment Owners Association | K140: BU | L140: B2B | M140: 6286 | N140: 4130 | O140: 780 | P140: =(Invoice[[#This Row],[bcy_total]]-Invoice[[#This Row],[COGS ]]-Invoice[[#This Row],[Logistics]]) -> 1376 | Q140: =(_xlfn.PERCENTOF(Invoice[[#This Row],[Gross Profit ]],Invoice[[#This Row],[bcy_total]])) -> 0.2188991409
A141: 976748000003168001 | B141: paid | C141: 2023-05-31 | D141: 2023 | E141: May | F141: 2023-24 | G141: 2023-06-15 | H141: INV-SF-000149 | J141: SNN Raj Greenbay Apartment Owners Association | K141: Pool | L141: B2B | M141: 11033 | N141: 8366 | O141: 780 | P141: =(Invoice[[#This Row],[bcy_total]]-Invoice[[#This Row],[COGS ]]-Invoice[[#This Row],[Logistics]]) -> 1887 | Q141: =(_xlfn.PERCENTOF(Invoice[[#This Row],[Gross Profit ]],Invoice[[#This Row],[bcy_total]])) -> 0.1710323575
A142: 976748000003167007 | B142: paid | C142: 2023-05-31 | D142: 2023 | E142: May | F142: 2023-24 | G142: 2023-06-15 | H142: INV-SF-000150 | I142: 001 | J142: SNN Raj Greenbay Apartment Owners Association | K142: Machine | L142: B2B | M142: 71334 | N142: 56550 | O142: 880 | P142: =(Invoice[[#This Row],[bcy_total]]-Invoice[[#This Row],[COGS ]]-Invoice[[#This Row],[Logistics]]) -> 13904 | Q142: =(_xlfn.PERCENTOF(Invoice[[#This Row],[Gross Profit ]],Invoice[[#This Row],[bcy_total]])) -> 0.1949140662
A143: 976748000003230001 | B143: paid | C143: 2023-06-03 | D143: 2023 | E143: Jun | F143: 2023-24 | G143: 2023-06-03 | H143: INV-SF-000151 | J143: MANTRI TRANQUIL APARTMENT OWNERS ASSOCIATION | K143: Pool | L143: B2B | M143: 21240 | N143: 16992 | O143: 0 | P143: =(Invoice[[#This Row],[bcy_total]]-Invoice[[#This Row],[COGS ]]-Invoice[[#This Row],[Logistics]]) -> 4248 | Q143: =(_xlfn.PERCENTOF(Invoice[[#This Row],[Gross Profit ]],Invoice[[#This Row],[bcy_total]])) -> 0.2
A144: 976748000003224021 | B144: paid | C144: 2023-06-03 | D144: 2023 | E144: Jun | F144: 2023-24 | G144: 2023-06-03 | H144: INV-SF-000152 | J144: DSR WOODWINDS APARTMENT OWNERS ASSOCIATION | K144: E | L144: B2B | M144: 31152 | N144: =(20700) -> 20700 | O144: 3000 | P144: =(Invoice[[#This Row],[bcy_total]]-Invoice[[#This Row],[COGS ]]-Invoice[[#This Row],[Logistics]]) -> 7452 | Q144: =(_xlfn.PERCENTOF(Invoice[[#This Row],[Gross Profit ]],Invoice[[#This Row],[bcy_total]])) -> 0.2392141757
A145: 976748000003235995 | B145: paid | C145: 2023-06-04 | D145: 2023 | E145: Jun | F145: 2023-24 | G145: 2023-06-04 | H145: INV-SF-000153 | J145: CGK Water Solutions | K145: Pool | L145: B2B | M145: 14125 | N145: 11564 | O145: 0 | P145: =(Invoice[[#This Row],[bcy_total]]-Invoice[[#This Row],[COGS ]]-Invoice[[#This Row],[Logistics]]) -> 2561 | Q145: =(_xlfn.PERCENTOF(Invoice[[#This Row],[Gross Profit ]],Invoice[[#This Row],[bcy_total]])) -> 0.1813097345
A146: 976748000003273001 | B146: paid | C146: 2023-06-06 | D146: 2023 | E146: Jun | F146: 2023-24 | G146: 2023-07-05 | H146: INV-SF-000154 | J146: SNN BUILDERS PRIVATE LIMITED | K146: HK | L146: B2B | M146: 3059 | N146: 2690 | O146: 280 | P146: =(Invoice[[#This Row],[bcy_total]]-Invoice[[#This Row],[COGS ]]-Invoice[[#This Row],[Logistics]]) -> 89 | Q146: =(_xlfn.PERCENTOF(Invoice[[#This Row],[Gross Profit ]],Invoice[[#This Row],[bcy_total]])) -> 0.02909447532
A147: 976748000003273047 | B147: paid | C147: 2023-06-06 | D147: 2023 | E147: Jun | F147: 2023-24 | G147: 2023-06-06 | H147: INV-SF-000155 | J147: PRESTIGE FERNS RESIDENCY APARTMENT OWNERS ASSOCIATION | K147: E | L147: B2B | M147: 16057 | N147: 8710 | O147: 400 | P147: =(Invoice[[#This Row],[bcy_total]]-Invoice[[#This Row],[COGS ]]-Invoice[[#This Row],[Logistics]]) -> 6947 | Q147: =(_xlfn.PERCENTOF(Invoice[[#This Row],[Gross Profit ]],Invoice[[#This Row],[bcy_total]])) -> 0.4326461979
A148: 976748000003273125 | B148: paid | C148: 2023-06-06 | D148: 2023 | E148: Jun | F148: 2023-24 | G148: 2023-06-06 | H148: INV-SF-000156 | J148: PRESTIGE FERNS RESIDENCY APARTMENT OWNERS ASSOCIATION | K148: Plumbing | L148: B2B | M148: 11620 | N148: =(650*15) -> 9750 | O148: 0 | P148: =(Invoice[[#This Row],[bcy_total]]-Invoice[[#This Row],[COGS ]]-Invoice[[#This Row],[Logistics]]) -> 1870 | Q148: =(_xlfn.PERCENTOF(Invoice[[#This Row],[Gross Profit ]],Invoice[[#This Row],[bcy_total]])) -> 0.160929432
A149: 976748000003271125 | B149: paid | C149: 2023-06-06 | D149: 2023 | E149: Jun | F149: 2023-24 | G149: 2023-06-06 | H149: INV-SF-000157 | I149: SO-00105 | J149: Yogesh Raikar | K149: Plumbing | L149: B2C | M149: 994 | N149: 499 | O149: =(Invoice[[#This Row],[COGS ]]*0.3) -> 149.7 | P149: =(Invoice[[#This Row],[bcy_total]]-Invoice[[#This Row],[COGS ]]-Invoice[[#This Row],[Logistics]]) -> 345.3 | Q149: =(_xlfn.PERCENTOF(Invoice[[#This Row],[Gross Profit ]],Invoice[[#This Row],[bcy_total]])) -> 0.3473843058
A150: 976748000003282001 | B150: paid | C150: 2023-06-06 | D150: 2023 | E150: Jun | F150: 2023-24 | G150: 2023-06-06 | H150: INV-SF-000160 | J150: MANTRI TRANQUIL APARTMENT OWNERS ASSOCIATION | K150: Plumbing | L150: B2B | M150: 5417 | N150: 4333 | O150: 0 | P150: =(Invoice[[#This Row],[bcy_total]]-Invoice[[#This Row],[COGS ]]-Invoice[[#This Row],[Logistics]]) -> 1084 | Q150: =(_xlfn.PERCENTOF(Invoice[[#This Row],[Gross Profit ]],Invoice[[#This Row],[bcy_total]])) -> 0.2001107624
A151: 976748000003273203 | B151: paid | C151: 2023-06-07 | D151: 2023 | E151: Jun | F151: 2023-24 | G151: 2023-06-07 | H151: INV-SF-000161 | J151: PRESTIGE FERNS RESIDENCY APARTMENT OWNERS ASSOCIATION | K151: E | L151: B2B | M151: 47267 | N151: 39042 | O151: 700 | P151: =(Invoice[[#This Row],[bcy_total]]-Invoice[[#This Row],[COGS ]]-Invoice[[#This Row],[Logistics]]) -> 7525 | Q151: =(_xlfn.PERCENTOF(Invoice[[#This Row],[Gross Profit ]],Invoice[[#This Row],[bcy_total]])) -> 0.1592019802
A152: 976748000003288001 | B152: paid | C152: 2023-06-07 | D152: 2023 | E152: Jun | F152: 2023-24 | G152: 2023-06-07 | H152: INV-SF-000162 | J152: ENCARE SOLUTIONS & SERVICES | K152: Media | L152: B2B | M152: 378030 | N152: 333666 | O152: 6000 | P152: =(Invoice[[#This Row],[bcy_total]]-Invoice[[#This Row],[COGS ]]-Invoice[[#This Row],[Logistics]]) -> 38364 | Q152: =(_xlfn.PERCENTOF(Invoice[[#This Row],[Gross Profit ]],Invoice[[#This Row],[bcy_total]])) -> 0.1014840092
A153: 976748000003273267 | B153: paid | C153: 2023-06-07 | D153: 2023 | E153: Jun | F153: 2023-24 | G153: 2023-06-07 | H153: INV-SF-000163 | J153: NIMBUS HARBOR FACILITIES MANAGEMENT PRIVATE LIMITED (Hyderabad) | K153: Safety | L153: B2B | M153: 54150 | N153: 49607 | O153: 780 | P153: =(Invoice[[#This Row],[bcy_total]]-Invoice[[#This Row],[COGS ]]-Invoice[[#This Row],[Logistics]]) -> 3763 | Q153: =(_xlfn.PERCENTOF(Invoice[[#This Row],[Gross Profit ]],Invoice[[#This Row],[bcy_total]])) -> 0.06949215143
A154: 976748000003268081 | B154: paid | C154: 2023-06-08 | D154: 2023 | E154: Jun | F154: 2023-24 | G154: 2023-06-08 | H154: INV-SF-000164 | I154: NH/23-24/070 | J154: NIMBUS HARBOR FACILITIES MANAGEMENT PRIVATE LIMITED (Hyderabad) | K154: Stationary | L154: B2B | M154: 66383 | N154: 60337 | O154: 3500 | P154: =(Invoice[[#This Row],[bcy_total]]-Invoice[[#This Row],[COGS ]]-Invoice[[#This Row],[Logistics]]) -> 2546 | Q154: =(_xlfn.PERCENTOF(Invoice[[#This Row],[Gross Profit ]],Invoice[[#This Row],[bcy_total]])) -> 0.03835319284
A155: 976748000003296007 | B155: paid | C155: 2023-06-09 | D155: 2023 | E155: Jun | F155: 2023-24 | G155: 2023-06-09 | H155: INV-SF-000165 | J155: CASA PARADISO 2 SUBCOMMITTEE | K155: Plumbing | L155: B2B | M155: 8491 | N155: 6792 | O155: 0 | P155: =(Invoice[[#This Row],[bcy_total]]-Invoice[[#This Row],[COGS ]]-Invoice[[#This Row],[Logistics]]) -> 1699 | Q155: =(_xlfn.PERCENTOF(Invoice[[#This Row],[Gross Profit ]],Invoice[[#This Row],[bcy_total]])) -> 0.2000942174
A156: 976748000003296063 | B156: paid | C156: 2023-06-09 | D156: 2023 | E156: Jun | F156: 2023-24 | G156: 2023-06-09 | H156: INV-SF-000166 | J156: CASA PARADISO 2 SUBCOMMITTEE | K156: Plumbing | L156: B2B | M156: 5984 | N156: 4787 | O156: 0 | P156: =(Invoice[[#This Row],[bcy_total]]-Invoice[[#This Row],[COGS ]]-Invoice[[#This Row],[Logistics]]) -> 1197 | Q156: =(_xlfn.PERCENTOF(Invoice[[#This Row],[Gross Profit ]],Invoice[[#This Row],[bcy_total]])) -> 0.2000334225
A157: 976748000003330366 | B157: paid | C157: 2023-06-10 | D157: 2023 | E157: Jun | F157: 2023-24 | G157: 2023-06-10 | H157: INV-SF-000167 | J157: PRESTIGE FERNS RESIDENCY APARTMENT OWNERS ASSOCIATION | K157: Hardware | L157: B2B | M157: 2320 | N157: 2034 | O157: 180 | P157: =(Invoice[[#This Row],[bcy_total]]-Invoice[[#This Row],[COGS ]]-Invoice[[#This Row],[Logistics]]) -> 106 | Q157: =(_xlfn.PERCENTOF(Invoice[[#This Row],[Gross Profit ]],Invoice[[#This Row],[bcy_total]])) -> 0.04568965517
A158: 976748000003330448 | B158: paid | C158: 2023-06-12 | D158: 2023 | E158: Jun | F158: 2023-24 | G158: 2023-06-12 | H158: INV-SF-000168 | J158: PRESTIGE FERNS RESIDENCY APARTMENT OWNERS ASSOCIATION | K158: BU | L158: B2B | M158: 24780 | N158: 21000 | O158: 0 | P158: =(Invoice[[#This Row],[bcy_total]]-Invoice[[#This Row],[COGS ]]-Invoice[[#This Row],[Logistics]]) -> 3780 | Q158: =(_xlfn.PERCENTOF(Invoice[[#This Row],[Gross Profit ]],Invoice[[#This Row],[bcy_total]])) -> 0.1525423729
A159: 976748000003382079 | B159: paid | C159: 2023-06-14 | D159: 2023 | E159: Jun | F159: 2023-24 | G159: 2023-06-14 | H159: INV-SF-000169 | J159: MANTRI TRANQUIL APARTMENT OWNERS ASSOCIATION | K159: Plumbing | L159: B2B | M159: 3444 | N159: 2755 | O159: 0 | P159: =(Invoice[[#This Row],[bcy_total]]-Invoice[[#This Row],[COGS ]]-Invoice[[#This Row],[Logistics]]) -> 689 | Q159: =(_xlfn.PERCENTOF(Invoice[[#This Row],[Gross Profit ]],Invoice[[#This Row],[bcy_total]])) -> 0.200058072
A160: 976748000003412009 | B160: paid | C160: 2023-06-15 | D160: 2023 | E160: Jun | F160: 2023-24 | G160: 2023-06-15 | H160: INV-SF-000170 | J160: MANTRI TRANQUIL APARTMENT OWNERS ASSOCIATION | K160: Plumbing | L160: B2B | M160: 4617 | N160: 3653 | O160: 0 | P160: =(Invoice[[#This Row],[bcy_total]]-Invoice[[#This Row],[COGS ]]-Invoice[[#This Row],[Logistics]]) -> 964 | Q160: =(_xlfn.PERCENTOF(Invoice[[#This Row],[Gross Profit ]],Invoice[[#This Row],[bcy_total]])) -> 0.2087935889
A161: 976748000003388668 | B161: overdue | C161: 2023-06-15 | D161: 2023 | E161: Jun | F161: 2023-24 | G161: 2023-06-15 | H161: INV-SF-000171 | I161: SO-00108 | J161: SHUBHAM PRAKASH | K161: Plumbing | L161: B2C | M161: 1499 | N161: 780 | O161: =(Invoice[[#This Row],[COGS ]]*0.3) -> 234 | P161: =(Invoice[[#This Row],[bcy_total]]-Invoice[[#This Row],[COGS ]]-Invoice[[#This Row],[Logistics]]) -> 485 | Q161: =(_xlfn.PERCENTOF(Invoice[[#This Row],[Gross Profit ]],Invoice[[#This Row],[bcy_total]])) -> 0.3235490327
A162: 976748000003388804 | B162: paid | C162: 2023-06-15 | D162: 2023 | E162: Jun | F162: 2023-24 | G162: 2023-06-15 | H162: INV-SF-000172 | I162: SO-00110 | J162: jegatheesh thanumoorthy | K162: Plumbing | L162: B2C | M162: 1215 | N162: 670 | O162: =(Invoice[[#This Row],[COGS ]]*0.3) -> 201 | P162: =(Invoice[[#This Row],[bcy_total]]-Invoice[[#This Row],[COGS ]]-Invoice[[#This Row],[Logistics]]) -> 344 | Q162: =(_xlfn.PERCENTOF(Invoice[[#This Row],[Gross Profit ]],Invoice[[#This Row],[bcy_total]])) -> 0.283127572
A163: 976748000003412349 | B163: paid | C163: 2023-06-15 | D163: 2023 | E163: Jun | F163: 2023-24 | G163: 2023-06-30 | H163: INV-SF-000173 | J163: SNN Raj Greenbay Apartment Owners Association | K163: Hardware | L163: B2B | M163: 3247 | N163: 2280 | O163: 180 | P163: =(Invoice[[#This Row],[bcy_total]]-Invoice[[#This Row],[COGS ]]-Invoice[[#This Row],[Logistics]]) -> 787 | Q163: =(_xlfn.PERCENTOF(Invoice[[#This Row],[Gross Profit ]],Invoice[[#This Row],[bcy_total]])) -> 0.2423775793
A164: 976748000003418019 | B164: paid | C164: 2023-06-15 | D164: 2023 | E164: Jun | F164: 2023-24 | G164: 2023-06-15 | H164: INV-SF-000174 | J164: CGK Water Solutions | K164: Pool | L164: B2B | M164: 4425 | N164: 3540 | O164: 0 | P164: =(Invoice[[#This Row],[bcy_total]]-Invoice[[#This Row],[COGS ]]-Invoice[[#This Row],[Logistics]]) -> 885 | Q164: =(_xlfn.PERCENTOF(Invoice[[#This Row],[Gross Profit ]],Invoice[[#This Row],[bcy_total]])) -> 0.2
A165: 976748000003428013 | B165: paid | C165: 2023-06-16 | D165: 2023 | E165: Jun | F165: 2023-24 | G165: 2023-06-16 | H165: INV-SF-000175 | I165: SO-00111 | J165: RAJENDRAN DHANAKOTTI | K165: Plumbing | L165: B2C | M165: 379 | N165: 190 | O165: =(Invoice[[#This Row],[COGS ]]*0.3) -> 57 | P165: =(Invoice[[#This Row],[bcy_total]]-Invoice[[#This Row],[COGS ]]-Invoice[[#This Row],[Logistics]]) -> 132 | Q165: =(_xlfn.PERCENTOF(Invoice[[#This Row],[Gross Profit ]],Invoice[[#This Row],[bcy_total]])) -> 0.3482849604
A166: 976748000003428081 | B166: overdue | C166: 2023-06-16 | D166: 2023 | E166: Jun | F166: 2023-24 | G166: 2023-06-16 | H166: INV-SF-000176 | I166: SO-00112 | J166: Dr Tom Gee | K166: Plumbing | L166: B2C | M166: 1012 | N166: 508 | O166: =(Invoice[[#This Row],[COGS ]]*0.3) -> 152.4 | P166: =(Invoice[[#This Row],[bcy_total]]-Invoice[[#This Row],[COGS ]]-Invoice[[#This Row],[Logistics]]) -> 351.6 | Q166: =(_xlfn.PERCENTOF(Invoice[[#This Row],[Gross Profit ]],Invoice[[#This Row],[bcy_total]])) -> 0.34743083
A167: 976748000003436097 | B167: paid | C167: 2023-06-16 | D167: 2023 | E167: Jun | F167: 2023-24 | G167: 2023-06-16 | H167: INV-SF-000177 | J167: PRESTIGE FERNS RESIDENCY APARTMENT OWNERS ASSOCIATION | K167: E | L167: B2B | M167: 5372 | N167: 4459 | O167: 280 | P167: =(Invoice[[#This Row],[bcy_total]]-Invoice[[#This Row],[COGS ]]-Invoice[[#This Row],[Logistics]]) -> 633 | Q167: =(_xlfn.PERCENTOF(Invoice[[#This Row],[Gross Profit ]],Invoice[[#This Row],[bcy_total]])) -> 0.1178332092
A168: 976748000003436161 | B168: paid | C168: 2023-06-16 | D168: 2023 | E168: Jun | F168: 2023-24 | G168: 2023-06-16 | H168: INV-SF-000178 | J168: PRESTIGE FERNS RESIDENCY APARTMENT OWNERS ASSOCIATION | K168: E | L168: B2B | M168: 10820 | N168: 9800 | O168: 280 | P168: =(Invoice[[#This Row],[bcy_total]]-Invoice[[#This Row],[COGS ]]-Invoice[[#This Row],[Logistics]]) -> 740 | Q168: =(_xlfn.PERCENTOF(Invoice[[#This Row],[Gross Profit ]],Invoice[[#This Row],[bcy_total]])) -> 0.06839186691
A169: 976748000003459020 | B169: paid | C169: 2023-06-17 | D169: 2023 | E169: Jun | F169: 2023-24 | G169: 2023-06-17 | H169: INV-SF-000179 | J169: NIMBUS HARBOR FACILITIES MANAGEMENT PRIVATE LIMITED (Bengaluru) | K169: HK | L169: B2B | M169: 20268 | N169: 17486 | O169: 0 | P169: =(Invoice[[#This Row],[bcy_total]]-Invoice[[#This Row],[COGS ]]-Invoice[[#This Row],[Logistics]]) -> 2782 | Q169: =(_xlfn.PERCENTOF(Invoice[[#This Row],[Gross Profit ]],Invoice[[#This Row],[bcy_total]])) -> 0.1372607065
A170: 976748000003436233 | B170: paid | C170: 2023-06-17 | D170: 2023 | E170: Jun | F170: 2023-24 | G170: 2023-06-17 | H170: INV-SF-000180 | J170: PRESTIGE FERNS RESIDENCY APARTMENT OWNERS ASSOCIATION | K170: Plumbing | L170: B2B | M170: 24442 | N170: 23800 | O170: 280 | P170: =(Invoice[[#This Row],[bcy_total]]-Invoice[[#This Row],[COGS ]]-Invoice[[#This Row],[Logistics]]) -> 362 | Q170: =(_xlfn.PERCENTOF(Invoice[[#This Row],[Gross Profit ]],Invoice[[#This Row],[bcy_total]])) -> 0.01481057197
A171: 976748000003436341 | B171: paid | C171: 2023-06-17 | D171: 2023 | E171: Jun | F171: 2023-24 | G171: 2023-07-02 | H171: INV-SF-000181 | J171: SNN Raj Greenbay Apartment Owners Association | K171: BU | L171: B2B | M171: 3247 | N171: 2280 | O171: 180 | P171: =(Invoice[[#This Row],[bcy_total]]-Invoice[[#This Row],[COGS ]]-Invoice[[#This Row],[Logistics]]) -> 787 | Q171: =(_xlfn.PERCENTOF(Invoice[[#This Row],[Gross Profit ]],Invoice[[#This Row],[bcy_total]])) -> 0.2423775793
A172: 976748000003469014 | B172: paid | C172: 2023-06-18 | D172: 2023 | E172: Jun | F172: 2023-24 | G172: 2023-06-18 | H172: INV-SF-000182 | J172: ENCARE SOLUTIONS & SERVICES | K172: Media | L172: B2B | M172: 268568 | N172: 229392 | O172: 7000 | P172: =(Invoice[[#This Row],[bcy_total]]-Invoice[[#This Row],[COGS ]]-Invoice[[#This Row],[Logistics]]) -> 32176 | Q172: =(_xlfn.PERCENTOF(Invoice[[#This Row],[Gross Profit ]],Invoice[[#This Row],[bcy_total]])) -> 0.1198057848
A173: 976748000003472031 | B173: paid | C173: 2023-06-18 | D173: 2023 | E173: Jun | F173: 2023-24 | G173: 2023-06-18 | H173: INV-SF-000183 | J173: ENCARE SOLUTIONS & SERVICES | K173: Media | L173: B2B | M173: 34404 | N173: 23100 | O173: 4000 | P173: =(Invoice[[#This Row],[bcy_total]]-Invoice[[#This Row],[COGS ]]-Invoice[[#This Row],[Logistics]]) -> 7304 | Q173: =(_xlfn.PERCENTOF(Invoice[[#This Row],[Gross Profit ]],Invoice[[#This Row],[bcy_total]])) -> 0.2123008952
A174: 976748000003486001 | B174: paid | C174: 2023-06-19 | D174: 2023 | E174: Jun | F174: 2023-24 | G174: 2023-06-19 | H174: INV-SF-000184 | J174: DSR WOODWINDS APARTMENT OWNERS ASSOCIATION | K174: E | L174: B2B | M174: 21154 | N174: 16700 | O174: 700 | P174: =(Invoice[[#This Row],[bcy_total]]-Invoice[[#This Row],[COGS ]]-Invoice[[#This Row],[Logistics]]) -> 3754 | Q174: =(_xlfn.PERCENTOF(Invoice[[#This Row],[Gross Profit ]],Invoice[[#This Row],[bcy_total]])) -> 0.1774605276
A175: 976748000003482016 | B175: overdue | C175: 2023-06-21 | D175: 2023 | E175: Jun | F175: 2023-24 | G175: 2023-06-21 | H175: INV-SF-000185 | I175: SO-00114 | J175: Suraj Agrawal | K175: Plumbing | L175: B2C | M175: 10496 | N175: 5255 | O175: =(Invoice[[#This Row],[COGS ]]*0.3) -> 1576.5 | P175: =(Invoice[[#This Row],[bcy_total]]-Invoice[[#This Row],[COGS ]]-Invoice[[#This Row],[Logistics]]) -> 3664.5 | Q175: =(_xlfn.PERCENTOF(Invoice[[#This Row],[Gross Profit ]],Invoice[[#This Row],[bcy_total]])) -> 0.349133003
A176: 976748000003482082 | B176: overdue | C176: 2023-06-21 | D176: 2023 | E176: Jun | F176: 2023-24 | G176: 2023-06-21 | H176: INV-SF-000186 | I176: SO-00113 | J176: Sourav Saha | K176: Plumbing | L176: B2C | M176: 244 | N176: 100 | O176: =(Invoice[[#This Row],[COGS ]]*0.3) -> 30 | P176: =(Invoice[[#This Row],[bcy_total]]-Invoice[[#This Row],[COGS ]]-Invoice[[#This Row],[Logistics]]) -> 114 | Q176: =(_xlfn.PERCENTOF(Invoice[[#This Row],[Gross Profit ]],Invoice[[#This Row],[bcy_total]])) -> 0.4672131148
A177: 976748000003486204 | B177: paid | C177: 2023-06-21 | D177: 2023 | E177: Jun | F177: 2023-24 | G177: 2023-06-21 | H177: INV-SF-000187 | J177: NIMBUS HARBOR FACILITIES MANAGEMENT PRIVATE LIMITED (Hyderabad) | K177: Safety | L177: B2B | M177: 75600 | N177: 70000 | O177: 1800 | P177: =(Invoice[[#This Row],[bcy_total]]-Invoice[[#This Row],[COGS ]]-Invoice[[#This Row],[Logistics]]) -> 3800 | Q177: =(_xlfn.PERCENTOF(Invoice[[#This Row],[Gross Profit ]],Invoice[[#This Row],[bcy_total]])) -> 0.05026455026
A178: 976748000003495561 | B178: paid | C178: 2023-06-22 | D178: 2023 | E178: Jun | F178: 2023-24 | G178: 2023-06-22 | H178: INV-SF-000188 | J178: ENCARE SOLUTIONS & SERVICES | K178: Plumbing | L178: B2B | M178: 4722 | N178: 3490 | O178: 0 | P178: =(Invoice[[#This Row],[bcy_total]]-Invoice[[#This Row],[COGS ]]-Invoice[[#This Row],[Logistics]]) -> 1232 | Q178: =(_xlfn.PERCENTOF(Invoice[[#This Row],[Gross Profit ]],Invoice[[#This Row],[bcy_total]])) -> 0.2609063956
A179: 976748000003505269 | B179: paid | C179: 2023-06-23 | D179: 2023 | E179: Jun | F179: 2023-24 | G179: 2023-06-23 | H179: INV-SF-000189 | J179: S & S Enterprises | K179: E | L179: B2C | M179: 17000 | N179: 14320 | O179: 400 | P179: =(Invoice[[#This Row],[bcy_total]]-Invoice[[#This Row],[COGS ]]-Invoice[[#This Row],[Logistics]]) -> 2280 | Q179: =(_xlfn.PERCENTOF(Invoice[[#This Row],[Gross Profit ]],Invoice[[#This Row],[bcy_total]])) -> 0.1341176471
A180: 976748000003524007 | B180: paid | C180: 2023-06-24 | D180: 2023 | E180: Jun | F180: 2023-24 | G180: 2023-06-24 | H180: INV-SF-000190 | J180: PRESTIGE FERNS RESIDENCY APARTMENT OWNERS ASSOCIATION | K180: Stationary | L180: B2B | M180: 17708 | N180: 14167 | O180: 280 | P180: =(Invoice[[#This Row],[bcy_total]]-Invoice[[#This Row],[COGS ]]-Invoice[[#This Row],[Logistics]]) -> 3261 | Q180: =(_xlfn.PERCENTOF(Invoice[[#This Row],[Gross Profit ]],Invoice[[#This Row],[bcy_total]])) -> 0.1841540547
A181: 976748000003536055 | B181: paid | C181: 2023-06-24 | D181: 2023 | E181: Jun | F181: 2023-24 | G181: 2023-06-24 | H181: INV-SF-000191 | J181: MANTRI TRANQUIL APARTMENT OWNERS ASSOCIATION | K181: Pool | L181: B2B | M181: 21240 | N181: 16992 | O181: 0 | P181: =(Invoice[[#This Row],[bcy_total]]-Invoice[[#This Row],[COGS ]]-Invoice[[#This Row],[Logistics]]) -> 4248 | Q181: =(_xlfn.PERCENTOF(Invoice[[#This Row],[Gross Profit ]],Invoice[[#This Row],[bcy_total]])) -> 0.2
A182: 976748000003536113 | B182: paid | C182: 2023-06-24 | D182: 2023 | E182: Jun | F182: 2023-24 | G182: 2023-06-24 | H182: INV-SF-000192 | J182: CASA PARADISO 2 SUBCOMMITTEE | K182: Pool | L182: B2B | M182: 2124 | N182: 1699 | O182: 0 | P182: =(Invoice[[#This Row],[bcy_total]]-Invoice[[#This Row],[COGS ]]-Invoice[[#This Row],[Logistics]]) -> 425 | Q182: =(_xlfn.PERCENTOF(Invoice[[#This Row],[Gross Profit ]],Invoice[[#This Row],[bcy_total]])) -> 0.200094162
A183: 976748000003532015 | B183: overdue | C183: 2023-06-26 | D183: 2023 | E183: Jun | F183: 2023-24 | G183: 2023-06-26 | H183: INV-SF-000193 | I183: SO-00115 | J183: Mohd Sikender | K183: Plumbing | L183: B2C | M183: 319 | N183: 180 | O183: =(Invoice[[#This Row],[COGS ]]*0.3) -> 54 | P183: =(Invoice[[#This Row],[bcy_total]]-Invoice[[#This Row],[COGS ]]-Invoice[[#This Row],[Logistics]]) -> 85 | Q183: =(_xlfn.PERCENTOF(Invoice[[#This Row],[Gross Profit ]],Invoice[[#This Row],[bcy_total]])) -> 0.2664576803
A184: 976748000003532085 | B184: overdue | C184: 2023-06-26 | D184: 2023 | E184: Jun | F184: 2023-24 | G184: 2023-06-26 | H184: INV-SF-000194 | I184: SO-00116 | J184: SaiSumanKumar Pusarla | K184: Plumbing | L184: B2C | M184: 2158 | N184: 1079 | O184: =(Invoice[[#This Row],[COGS ]]*0.3) -> 323.7 | P184: =(Invoice[[#This Row],[bcy_total]]-Invoice[[#This Row],[COGS ]]-Invoice[[#This Row],[Logistics]]) -> 755.3 | Q184: =(_xlfn.PERCENTOF(Invoice[[#This Row],[Gross Profit ]],Invoice[[#This Row],[bcy_total]])) -> 0.35
A185: 976748000003572001 | B185: paid | C185: 2023-06-27 | D185: 2023 | E185: Jun | F185: 2023-24 | G185: 2023-06-27 | H185: INV-SF-000196 | J185: CASA PARADISO 2 SUBCOMMITTEE | K185: HK | L185: B2B | M185: 17801 | N185: 17299 | O185: 455 | P185: =(Invoice[[#This Row],[bcy_total]]-Invoice[[#This Row],[COGS ]]-Invoice[[#This Row],[Logistics]]) -> 47 | Q185: =(_xlfn.PERCENTOF(Invoice[[#This Row],[Gross Profit ]],Invoice[[#This Row],[bcy_total]])) -> 0.002640301107
A186: 976748000003578001 | B186: paid | C186: 2023-06-27 | D186: 2023 | E186: Jun | F186: 2023-24 | G186: 2023-06-27 | H186: INV-SF-000197 | J186: NIMBUS HARBOR FACILITIES MANAGEMENT PRIVATE LIMITED (Bengaluru) | K186: BU | L186: B2B | M186: 4279 | N186: 3428 | O186: 390 | P186: =(Invoice[[#This Row],[bcy_total]]-Invoice[[#This Row],[COGS ]]-Invoice[[#This Row],[Logistics]]) -> 461 | Q186: =(_xlfn.PERCENTOF(Invoice[[#This Row],[Gross Profit ]],Invoice[[#This Row],[bcy_total]])) -> 0.1077354522
A187: 976748000003586001 | B187: paid | C187: 2023-06-28 | D187: 2023 | E187: Jun | F187: 2023-24 | G187: 2023-06-28 | H187: INV-SF-000198 | J187: Bindesh Dutt | K187: Plumbing | L187: B2C | M187: 863 | N187: 480 | O187: =(Invoice[[#This Row],[COGS ]]*0.3) -> 144 | P187: =(Invoice[[#This Row],[bcy_total]]-Invoice[[#This Row],[COGS ]]-Invoice[[#This Row],[Logistics]]) -> 239 | Q187: =(_xlfn.PERCENTOF(Invoice[[#This Row],[Gross Profit ]],Invoice[[#This Row],[bcy_total]])) -> 0.2769409038
A188: 976748000003659152 | B188: paid | C188: 2023-06-30 | D188: 2023 | E188: Jun | F188: 2023-24 | G188: 2023-06-30 | H188: INV-SF-000199 | J188: SNN Raj Greenbay Apartment Owners Association | K188: E | L188: B2B | M188: 416115 | N188: 409613 | O188: 500 | P188: =(Invoice[[#This Row],[bcy_total]]-Invoice[[#This Row],[COGS ]]-Invoice[[#This Row],[Logistics]]) -> 6002 | Q188: =(_xlfn.PERCENTOF(Invoice[[#This Row],[Gross Profit ]],Invoice[[#This Row],[bcy_total]])) -> 0.01442389724
A189: 976748000003669011 | B189: overdue | C189: 2023-07-03 | D189: 2023 | E189: Jul | F189: 2023-24 | G189: 2023-07-03 | H189: INV-SF-000200 | I189: SO-00128 | J189: Venkatrao Javvadhi | K189: Plumbing | L189: B2C | M189: 245 | N189: 180 | O189: =(Invoice[[#This Row],[COGS ]]*0.3) -> 54 | P189: =(Invoice[[#This Row],[bcy_total]]-Invoice[[#This Row],[COGS ]]-Invoice[[#This Row],[Logistics]]) -> 11 | Q189: =(_xlfn.PERCENTOF(Invoice[[#This Row],[Gross Profit ]],Invoice[[#This Row],[bcy_total]])) -> 0.04489795918
A190: 976748000003669081 | B190: overdue | C190: 2023-07-03 | D190: 2023 | E190: Jul | F190: 2023-24 | G190: 2023-07-03 | H190: INV-SF-000201 | I190: SO-00130 | J190: praveen choudhary | K190: Plumbing | L190: B2C | M190: 726 | N190: 380 | O190: =(Invoice[[#This Row],[COGS ]]*0.3) -> 114 | P190: =(Invoice[[#This Row],[bcy_total]]-Invoice[[#This Row],[COGS ]]-Invoice[[#This Row],[Logistics]]) -> 232 | Q190: =(_xlfn.PERCENTOF(Invoice[[#This Row],[Gross Profit ]],Invoice[[#This Row],[bcy_total]])) -> 0.3195592287
A191: 976748000003669149 | B191: paid | C191: 2023-07-03 | D191: 2023 | E191: Jul | F191: 2023-24 | G191: 2023-07-03 | H191: INV-SF-000202 | I191: SO-00126 | J191: Amit Kushwaha | K191: Plumbing | L191: B2C | M191: 610 | N191: 320 | O191: =(Invoice[[#This Row],[COGS ]]*0.3) -> 96 | P191: =(Invoice[[#This Row],[bcy_total]]-Invoice[[#This Row],[COGS ]]-Invoice[[#This Row],[Logistics]]) -> 194 | Q191: =(_xlfn.PERCENTOF(Invoice[[#This Row],[Gross Profit ]],Invoice[[#This Row],[bcy_total]])) -> 0.3180327869
A192: 976748000003671009 | B192: overdue | C192: 2023-07-03 | D192: 2023 | E192: Jul | F192: 2023-24 | G192: 2023-07-03 | H192: INV-SF-000203 | I192: SO-00125 | J192: Santhi plastics | K192: Plumbing | L192: B2C | M192: 3481 | N192: 1780 | O192: =(Invoice[[#This Row],[COGS ]]*0.3) -> 534 | P192: =(Invoice[[#This Row],[bcy_total]]-Invoice[[#This Row],[COGS ]]-Invoice[[#This Row],[Logistics]]) -> 1167 | Q192: =(_xlfn.PERCENTOF(Invoice[[#This Row],[Gross Profit ]],Invoice[[#This Row],[bcy_total]])) -> 0.3352484918
A193: 976748000003669324 | B193: overdue | C193: 2023-07-03 | D193: 2023 | E193: Jul | F193: 2023-24 | G193: 2023-07-03 | H193: INV-SF-000204 | I193: SO-00122 | J193: Palachandra Venkataraju | K193: Plumbing | L193: B2C | M193: 294 | N193: 180 | O193: =(Invoice[[#This Row],[COGS ]]*0.3) -> 54 | P193: =(Invoice[[#This Row],[bcy_total]]-Invoice[[#This Row],[COGS ]]-Invoice[[#This Row],[Logistics]]) -> 60 | Q193: =(_xlfn.PERCENTOF(Invoice[[#This Row],[Gross Profit ]],Invoice[[#This Row],[bcy_total]])) -> 0.2040816327
A194: 976748000003671071 | B194: paid | C194: 2023-07-03 | D194: =YEAR(C194) -> 2023 | E194: =TEXT(C194,"mmm") -> Jul | F194: 2023-24 | G194: 2023-07-03 | H194: INV-SF-000205 | I194: SO-00129 | J194: Sravanthi Reddy | K194: Plumbing | L194: B2C | M194: 228 | N194: 130 | O194: =(Invoice[[#This Row],[COGS ]]*0.3) -> 39 | P194: =(Invoice[[#This Row],[bcy_total]]-Invoice[[#This Row],[COGS ]]-Invoice[[#This Row],[Logistics]]) -> 59 | Q194: =(_xlfn.PERCENTOF(Invoice[[#This Row],[Gross Profit ]],Invoice[[#This Row],[bcy_total]])) -> 0.2587719298
A195: 976748000003669398 | B195: overdue | C195: 2023-07-03 | D195: 2023 | E195: Jul | F195: 2023-24 | G195: 2023-07-03 | H195: INV-SF-000206 | I195: SO-00121 | J195: anusha Chhetri | K195: Plumbing | L195: B2C | M195: 299 | N195: 180 | O195: =(Invoice[[#This Row],[COGS ]]*0.3) -> 54 | P195: =(Invoice[[#This Row],[bcy_total]]-Invoice[[#This Row],[COGS ]]-Invoice[[#This Row],[Logistics]]) -> 65 | Q195: =(_xlfn.PERCENTOF(Invoice[[#This Row],[Gross Profit ]],Invoice[[#This Row],[bcy_total]])) -> 0.2173913043
A196: 976748000003669468 | B196: overdue | C196: 2023-07-03 | D196: 2023 | E196: Jul | F196: 2023-24 | G196: 2023-07-03 | H196: INV-SF-000207 | I196: SO-00120 | J196: ACHINTA BHOWMIK | K196: Plumbing | L196: B2C | M196: 298 | N196: 170 | O196: =(Invoice[[#This Row],[COGS ]]*0.3) -> 51 | P196: =(Invoice[[#This Row],[bcy_total]]-Invoice[[#This Row],[COGS ]]-Invoice[[#This Row],[Logistics]]) -> 77 | Q196: =(_xlfn.PERCENTOF(Invoice[[#This Row],[Gross Profit ]],Invoice[[#This Row],[bcy_total]])) -> 0.2583892617
A197: 976748000003677031 | B197: paid | C197: 2023-07-03 | D197: 2023 | E197: Jul | F197: 2023-24 | G197: 2023-07-18 | H197: INV-SF-000208 | I197: SO-00131 | J197: SNN Raj Greenbay Apartment Owners Association | K197: BU | L197: B2B | M197: 12213 | N197: 10089 | O197: 280 | P197: =(Invoice[[#This Row],[bcy_total]]-Invoice[[#This Row],[COGS ]]-Invoice[[#This Row],[Logistics]]) -> 1844 | Q197: =(_xlfn.PERCENTOF(Invoice[[#This Row],[Gross Profit ]],Invoice[[#This Row],[bcy_total]])) -> 0.1509866536
A198: 976748000003689037 | B198: paid | C198: 2023-07-04 | D198: 2023 | E198: Jul | F198: 2023-24 | G198: 2023-07-04 | H198: INV-SF-000209 | I198: SO-00134 | J198: DSR WOODWINDS APARTMENT OWNERS ASSOCIATION | K198: Pool | L198: B2B | M198: 16875 | N198: 15000 | O198: 0 | P198: =(Invoice[[#This Row],[bcy_total]]-Invoice[[#This Row],[COGS ]]-Invoice[[#This Row],[Logistics]]) -> 1875 | Q198: =(_xlfn.PERCENTOF(Invoice[[#This Row],[Gross Profit ]],Invoice[[#This Row],[bcy_total]])) -> 0.1111111111
A199: 976748000003811241 | B199: paid | C199: 2023-07-14 | D199: 2023 | E199: Jul | F199: 2023-24 | G199: 2023-07-14 | H199: INV-SF-000210 | I199: SO-00140 | J199: DSR WOODWINDS APARTMENT OWNERS ASSOCIATION | K199: BU | L199: B2B | M199: 23170 | N199: 20060 | O199: 600 | P199: =(Invoice[[#This Row],[bcy_total]]-Invoice[[#This Row],[COGS ]]-Invoice[[#This Row],[Logistics]]) -> 2510 | Q199: =(_xlfn.PERCENTOF(Invoice[[#This Row],[Gross Profit ]],Invoice[[#This Row],[bcy_total]])) -> 0.1083297367
A200: 976748000003721001 | B200: paid | C200: 2023-07-06 | D200: 2023 | E200: Jul | F200: 2023-24 | G200: 2023-07-06 | H200: INV-SF-000211 | J200: Sobha Clovelly | K200: E | L200: B2B | M200: 39566 | N200: 38343 | O200: 480 | P200: =(Invoice[[#This Row],[bcy_total]]-Invoice[[#This Row],[COGS ]]-Invoice[[#This Row],[Logistics]]) -> 743 | Q200: =(_xlfn.PERCENTOF(Invoice[[#This Row],[Gross Profit ]],Invoice[[#This Row],[bcy_total]])) -> 0.01877874943
... 407 more rows
